Workbook

Sheet Май
A1: Движние ГП за Май 2017 года
A2: N/N | B2: Остаток на начало периода | G2: Приход | L2: Продано банки 1 литр | O2: Продано банка 2,4 литр | R2: Продано банка 3 литр | U2: Продоно Крышки № 5 | V2: Продоно Крышка № 9;10 | W2: Остаток на конец периода
B3: 1 литр | C3: 2,4 литра | D3: 3 литр | E3: Крышка № 5 | F3: Крышка № 9;10 | G3: 1 литр | H3: 2,4 литра | I3: 3 литр | J3: Крышка № 5 | K3: Крышка № 9;10 | L3: Наименование покупателя | M3: Количество по покупателю | N3: Количество | O3: Наименование покупателя | P3: Количество по покупателю | Q3: Количество | R3: Наименование покупателя | S3: Количество по покупателю | T3: Количество | U3: Количество | V3: Количество | W3: 1 литр | X3: 2,4 литра | Y3: 3 литра | Z3: Крышка № 5 | AA3: Крышка № 9;10
A4: 2017-05-15 | B4: 89493 | C4: 1311 | D4: 5189 | E4: 55492 | F4: 6500 | L4: НПО "Ладога" | M4: 6237 | N4: =M4+M5+M6+M7 -> 6237 | Q4: =P4+P5+P6+P7 -> 0 | T4: =S4+S5+S6+S7 -> 0 | U4: 6237 | V4: =Q4+T4 -> 0 | W4: =B4+G4-N4 -> 83256 | X4: =C4+H4-Q4 -> 1311 | Y4: =D4+I4-T4 -> 5189 | Z4: =E4+J4-U4 -> 49255 | AA4: =F4+K4-V4 -> 6500
A8: 2017-05-16 | B8: =W4 -> 83256 | C8: =X4 -> 1311 | D8: =Y4 -> 5189 | E8: =Z4 -> 49255 | F8: =AA4 -> 6500 | N8: =M8+M9+M10+M11 -> 0 | Q8: =P8+P9+P10+P11 -> 0 | T8: =S8+S9+S10+S11 -> 0 | V8: =Q8+T8 -> 0 | W8: =B8+G8-N8 -> 83256 | X8: =C8+H8-Q8 -> 1311 | Y8: =D8+I8-T8 -> 5189 | Z8: =E8+J8-U8 -> 49255 | AA8: =F8+K8-V8 -> 6500
A12: 2017-05-17 | B12: =W8 -> 83256 | C12: =X8 -> 1311 | D12: =Y8 -> 5189 | E12: =Z8 -> 49255 | F12: =AA8 -> 6500 | N12: =M12+M13+M14+M15 -> 0 | O12: Растро | P12: 1134 | Q12: =P12+P13+P14+P15 -> 1134 | T12: =S12+S13+S14+S15 -> 0 | V12: =Q12+T12 -> 1134 | W12: =B12+G12-N12 -> 83256 | X12: =C12+H12-Q12 -> 177 | Y12: =D12+I12-T12 -> 5189 | Z12: =E12+J12-U12 -> 49255 | AA12: =F12+K12-V12 -> 5366
A16: 2017-05-18 | B16: =W12 -> 83256 | C16: =X12 -> 177 | D16: =Y12 -> 5189 | E16: =Z12 -> 49255 | F16: =AA12 -> 5366 | N16: =M16+M17+M18+M19 -> 0 | Q16: =P16+P17+P18+P19 -> 0 | T16: =S16+S17+S18+S19 -> 0 | V16: =Q16+T16 -> 0 | W16: =B16+G16-N16 -> 83256 | X16: =C16+H16-Q16 -> 177 | Y16: =D16+I16-T16 -> 5189 | Z16: =E16+J16-U16 -> 49255 | AA16: =F16+K16-V16 -> 5366
A20: 2017-05-19 | B20: =W16 -> 83256 | C20: =X16 -> 177 | D20: =Y16 -> 5189 | E20: =Z16 -> 49255 | F20: =AA16 -> 5366 | L20: НПО "Ладога" | M20: 7128 | N20: =M20+M21+M22+M23 -> 7128 | Q20: =P20+P21+P22+P23 -> 0 | T20: =S20+S21+S22+S23 -> 0 | U20: 7128 | V20: =Q20+T20 -> 0 | W20: =B20+G20-N20 -> 76128 | X20: =C20+H20-Q20 -> 177 | Y20: =D20+I20-T20 -> 5189 | Z20: =E20+J20-U20 -> 42127 | AA20: =F20+K20-V20 -> 5366
A24: 2017-05-20 | B24: =W20 -> 76128 | C24: =X20 -> 177 | D24: =Y20 -> 5189 | E24: =Z20 -> 42127 | F24: =AA20 -> 5366 | N24: =M24+M25+M26+M27 -> 0 | Q24: =P24+P25+P26+P27 -> 0 | T24: =S24+S25+S26+S27 -> 0 | V24: =Q24+T24 -> 0 | W24: =B24+G24-N24 -> 76128 | X24: =C24+H24-Q24 -> 177 | Y24: =D24+I24-T24 -> 5189 | Z24: =E24+J24-U24 -> 42127 | AA24: =F24+K24-V24 -> 5366
A28: 2017-05-21 | B28: =W24 -> 76128 | C28: =X24 -> 177 | D28: =Y24 -> 5189 | E28: =Z24 -> 42127 | F28: =AA24 -> 5366 | N28: =M28+M29+M30+M31 -> 0 | Q28: =P28+P29+P30+P31 -> 0 | T28: =S28+S29+S30+S31 -> 0 | V28: =Q28+T28 -> 0 | W28: =B28+G28-N28 -> 76128 | X28: =C28+H28-Q28 -> 177 | Y28: =D28+I28-T28 -> 5189 | Z28: =E28+J28-U28 -> 42127 | AA28: =F28+K28-V28 -> 5366
A32: 2017-05-22 | B32: =W28 -> 76128 | C32: =X28 -> 177 | D32: =Y28 -> 5189 | E32: =Z28 -> 42127 | F32: =AA28 -> 5366 | L32: НПО "Ладога" | M32: 7128 | N32: =M32+M33+M34+M35 -> 10692 | Q32: =P32+P33+P34+P35 -> 0 | T32: =S32+S33+S34+S35 -> 0 | U32: 10692 | V32: =Q32+T32 -> 0 | W32: =B32+G32-N32 -> 65436 | X32: =C32+H32-Q32 -> 177 | Y32: =D32+I32-T32 -> 5189 | Z32: =E32+J32-U32 -> 31435 | AA32: =F32+K32-V32 -> 5366
L33: Стан | M33: 3564
A36: 2017-05-23 | B36: =W32 -> 65436 | C36: =X32 -> 177 | D36: =Y32 -> 5189 | E36: =Z32 -> 31435 | F36: =AA32 -> 5366 | L36: Стереохим | M36: 1782 | N36: =M36+M37+M38+M39 -> 3564 | O36: Стереохим | P36: 177 | Q36: =P36+P37+P38+P39 -> 177 | T36: =S36+S37+S38+S39 -> 0 | U36: 3564 | V36: =Q36+T36 -> 177 | W36: =B36+G36-N36 -> 61872 | X36: =C36+H36-Q36 -> 0 | Y36: =D36+I36-T36 -> 5189 | Z36: =E36+J36-U36 -> 27871 | AA36: =F36+K36-V36 -> 5189
L37: Силта | M37: 891
L38: НПО "Ладога" | M38: 891
A40: 2017-05-24 | B40: =W36 -> 61872 | C40: =X36 -> 0 | D40: =Y36 -> 5189 | E40: =Z36 -> 27871 | F40: =AA36 -> 5189 | N40: =M40+M41+M42+M43 -> 0 | Q40: =P40+P41+P42+P43 -> 0 | R40: Дитекс | S40: 882 | T40: =S40+S41+S42+S43 -> 882 | V40: =Q40+T40 -> 882 | W40: =B40+G40-N40 -> 61872 | X40: =C40+H40-Q40 -> 0 | Y40: =D40+I40-T40 -> 4307 | Z40: =E40+J40-U40 -> 27871 | AA40: =F40+K40-V40 -> 4307
A44: 2017-05-25 | B44: =W40 -> 61872 | C44: =X40 -> 0 | D44: =Y40 -> 4307 | E44: =Z40 -> 27871 | F44: =AA40 -> 4307 | N44: =M44+M45+M46+M47 -> 0 | Q44: =P44+P45+P46+P47 -> 0 | R44: Дитекс | S44: 1176 | T44: =S44+S45+S46+S47 -> 1176 | V44: =Q44+T44 -> 1176 | W44: =B44+G44-N44 -> 61872 | X44: =C44+H44-Q44 -> 0 | Y44: =D44+I44-T44 -> 3131 | Z44: =E44+J44-U44 -> 27871 | AA44: =F44+K44-V44 -> 3131
A48: 2017-05-26 | B48: =W44 -> 61872 | C48: =X44 -> 0 | D48: =Y44 -> 3131 | E48: =Z44 -> 27871 | F48: =AA44 -> 3131 | H48: 21420 | K48: 21420 | N48: =M48+M49+M50+M51 -> 0 | Q48: =P48+P49+P50+P51 -> 0 | T48: =S48+S49+S50+S51 -> 0 | V48: =Q48+T48 -> 0 | W48: =B48+G48-N48 -> 61872 | X48: =C48+H48-Q48 -> 21420 | Y48: =D48+I48-T48 -> 3131 | Z48: =E48+J48-U48 -> 27871 | AA48: =F48+K48-V48 -> 24551
A52: 2017-05-27 | B52: =W48 -> 61872 | C52: =X48 -> 21420 | D52: =Y48 -> 3131 | E52: =Z48 -> 27871 | F52: =AA48 -> 24551 | N52: =M52+M53+M54+M55 -> 0 | Q52: =P52+P53+P54+P55 -> 0 | T52: =S52+S53+S54+S55 -> 0 | V52: =Q52+T52 -> 0 | W52: =B52+G52-N52 -> 61872 | X52: =C52+H52-Q52 -> 21420 | Y52: =D52+I52-T52 -> 3131 | Z52: =E52+J52-U52 -> 27871 | AA52: =F52+K52-V52 -> 24551
A56: 2017-05-28 | B56: =W52 -> 61872 | C56: =X52 -> 21420 | D56: =Y52 -> 3131 | E56: =Z52 -> 27871 | F56: =AA52 -> 24551 | N56: =M56+M57+M58+M59 -> 0 | Q56: =P56+P57+P58+P59 -> 0 | T56: =S56+S57+S58+S59 -> 0 | V56: =Q56+T56 -> 0 | W56: =B56+G56-N56 -> 61872 | X56: =C56+H56-Q56 -> 21420 | Y56: =D56+I56-T56 -> 3131 | Z56: =E56+J56-U56 -> 27871 | AA56: =F56+K56-V56 -> 24551
A60: 2017-05-29 | B60: =W56 -> 61872 | C60: =X56 -> 21420 | D60: =Y56 -> 3131 | E60: =Z56 -> 27871 | F60: =AA56 -> 24551 | L60: АктиКорозионные Покрытия | M60: 891 | N60: =M60+M61+M62+M63 -> 891 | Q60: =P60+P61+P62+P63 -> 0 | T60: =S60+S61+S62+S63 -> 0 | U60: 891 | V60: =Q60+T60 -> 0 | W60: =B60+G60-N60 -> 60981 | X60: =C60+H60-Q60 -> 21420 | Y60: =D60+I60-T60 -> 3131 | Z60: =E60+J60-U60 -> 26980 | AA60: =F60+K60-V60 -> 24551
A64: 2017-05-30 | B64: =W60 -> 60981 | C64: =X60 -> 21420 | D64: =Y60 -> 3131 | E64: =Z60 -> 26980 | F64: =AA60 -> 24551 | N64: =M64+M65+M66+M67 -> 0 | Q64: =P64+P65+P66+P67 -> 0 | T64: =S64+S65+S66+S67 -> 0 | V64: =Q64+T64 -> 0 | W64: =B64+G64-N64 -> 60981 | X64: =C64+H64-Q64 -> 21420 | Y64: =D64+I64-T64 -> 3131 | Z64: =E64+J64-U64 -> 26980 | AA64: =F64+K64-V64 -> 24551
A68: 2017-05-31 | B68: =W64 -> 60981 | C68: =X64 -> 21420 | D68: =Y64 -> 3131 | E68: =Z64 -> 26980 | F68: =AA64 -> 24551 | I68: 8897 | N68: =M68+M69+M70+M71 -> 0 | O68: Альянс | P68: 378 | Q68: =P68+P69+P70+P71 -> 378 | T68: =S68+S69+S70+S71 -> 0 | V68: =Q68+T68 -> 378 | W68: =B68+G68-N68 -> 60981 | X68: =C68+H68-Q68 -> 21042 | Y68: =D68+I68-T68 -> 12028 | Z68: =E68+J68-U68 -> 26980 | AA68: =F68+K68-V68 -> 24173
A72: Итого | B72: =B4 -> 89493 | C72: =C4 -> 1311 | D72: =D4 -> 5189 | E72: =E4 -> 55492 | F72: =F4 -> 6500 | G72: =G4+G12+G12+G16+G20+G24+G28+G32+G36+G40+G44+G48+G52+G56+G60+G68 -> 0 | H72: =H4+H12+H12+H16+H20+H24+H28+H32+H36+H40+H44+H48+H52+H56+H60+H64+H68 -> 21420 | I72: =I4+I12+I12+I16+I20+I24+I28+I32+I36+I40+I44+I48+I52+I56+I60+I64+I68 -> 8897 | J72: =J4+J12+J12+J16+J20+J24+J28+J32+J36+J40+J44+J48+J52+J56+J60+J64+J68 -> 0 | K72: =K4+K12+K12+K16+K20+K24+K28+K32+K36+K40+K44+K48+K52+K56+K60+K64+K68 -> 21420 | N72: =N4+N12+N12+N16+N20+N24+N28+N32+N36+N40+N44+N48+N52+N56+N60+N64+N68 -> 28512 | Q72: =Q4+Q12+Q12+Q16+Q20+Q24+Q28+Q32+Q36+Q40+Q44+Q48+Q52+Q56+Q60+Q64+Q68 -> 2823 | T72: =T4+T12+T12+T16+T20+T24+T28+T32+T36+T40+T44+T48+T52+T56+T60+T64+T68 -> 2058 | U72: =U4+U12+U12+U16+U20+U24+U28+U32+U36+U40+U44+U48+U52+U56+U60+U64+U68 -> 28512 | V72: =V4+V12+V12+V16+V20+V24+V28+V32+V36+V40+V44+V48+V52+V56+V60+V64+V68 -> 4881 | W72: =W68 -> 60981 | X72: =X68 -> 21042 | Y72: =Y68 -> 12028 | Z72: =Z68 -> 26980 | AA72: =AA68 -> 24173

Sheet Июнь
A1: Движние ГП за Июнь 2017 года
A2: N/N | B2: Остаток на начало периода | G2: Приход | L2: Продано банки 1 литр | O2: Продано банка 2,4 литр | R2: Продано банка 3 литр | U2: Продоно Крышки № 5 | V2: Продоно Крышка № 9;10 | W2: Остаток на конец периода
B3: 1 литр | C3: 2,4 литра | D3: 3 литр | E3: Крышка № 5 | F3: Крышка № 9;10 | G3: 1 литр | H3: 2,4 литра | I3: 3 литр | J3: Крышка № 5 | K3: Крышка № 9;10 | L3: Наименование покупателя | M3: Количество | N3: Количество | O3: Наименование покупателя | P3: Количество | Q3: Количество | R3: Наименование покупателя | S3: Количество | T3: Количество | U3: Количество | V3: Количество | W3: 1 литр | X3: 2,4 литра | Y3: 3 литра | Z3: Крышка № 5 | AA3: Крышка № 9;10
A4: 2017-06-01 | B4: =Май!W72 -> 60981 | C4: =Май!X72 -> 21042 | D4: =Май!Y72 -> 12028 | E4: =Май!Z72 -> 26980 | F4: =Май!AA72 -> 24173 | N4: =M4+M5+M6+M7 -> 0 | O4: Стереохим | P4: 1512 | Q4: =P4+P5+P6+P7 -> 1512 | T4: =S4+S5+S6+S7 -> 0 | V4: =Q4+T4 -> 1512 | W4: =B4+G4-N4 -> 60981 | X4: =C4+H4-Q4 -> 19530 | Y4: =D4+I4-T4 -> 12028 | Z4: 26980 | AA4: 22661
A8: 2017-06-02 | B8: =W4 -> 60981 | C8: =X4 -> 19530 | D8: =Y4 -> 12028 | E8: =Z4 -> 26980 | F8: =AA4 -> 22661 | L8: Сова технология | M8: 891 | N8: =M8+M9+M10+M11 -> 1782 | O8: Сова технология | P8: 378 | Q8: =P8+P9+P10+P11 -> 378 | R8: Сова технология | S8: 100 | T8: =S8+S9+S10+S11 -> 100 | V8: =Q8+T8 -> 478 | W8: 59199 | X8: 19152 | Y8: 11928 | Z8: 26980 | AA8: 22183
L9: НПО "Нефтихим" | M9: 891
A12: 2017-06-03 | B12: =W8 -> 59199 | C12: =X8 -> 19152 | D12: =Y8 -> 11928 | E12: =Z8 -> 26980 | F12: =AA8 -> 22183 | N12: =M12+M13+M14+M15 -> 0 | Q12: =P12+P13+P14+P15 -> 0 | T12: =S12+S13+S14+S15 -> 0 | V12: =Q12+T12 -> 0 | W12: 59199 | X12: 19152 | Y12: 11928 | Z12: 26980 | AA12: 22183
A16: 2017-06-04 | B16: =W12 -> 59199 | C16: =X12 -> 19152 | D16: =Y12 -> 11928 | E16: =Z12 -> 26980 | F16: =AA12 -> 22183 | N16: =M16+M17+M18+M19 -> 0 | Q16: =P16+P17+P18+P19 -> 0 | T16: =S16+S17+S18+S19 -> 0 | V16: =Q16+T16 -> 0 | W16: 59199 | X16: 19152 | Y16: 11928 | Z16: 26980 | AA16: 22183
A20: 2017-06-05 | B20: =W16 -> 59199 | C20: =X16 -> 19152 | D20: =Y16 -> 11928 | E20: =Z16 -> 26980 | F20: =AA16 -> 22183 | N20: =M20+M21+M22+M23 -> 0 | Q20: =P20+P21+P22+P23 -> 3024 | T20: =S20+S21+S22+S23 -> 0 | V20: =Q20+T20 -> 3024 | W20: 59199 | X20: 16128 | Y20: 11928 | Z20: 26980 | AA20: 19159
O21: НПО Ладога | P21: 3024
A24: 2017-06-06 | B24: =W20 -> 59199 | C24: =X20 -> 16128 | D24: =Y20 -> 11928 | E24: 26980 | F24: 19159 | N24: =M24+M25+M26+M27 -> 0 | Q24: =P24+P25+P26+P27 -> 0 | T24: =S24+S25+S26+S27 -> 0 | V24: =Q24+T24 -> 0 | W24: 59199 | X24: 16128 | Y24: 11928 | Z24: 26980 | AA24: 19159
A28: 2017-06-07 | B28: =W24 -> 59199 | C28: =X24 -> 16128 | D28: =Y24 -> 11928 | E28: =Z24 -> 26980 | F28: =AA24 -> 19159 | N28: =M28+M29+M30+M31 -> 0 | Q28: =P28+P29+P30+P31 -> 0 | T28: =S28+S29+S30+S31 -> 0 | V28: =Q28+T28 -> 0 | W28: 59199 | X28: 16128 | Y28: 11928 | Z28: 26980 | AA28: 19159
A29: 2017-06-07
A30: 2017-06-07
A31: 2017-06-07
A32: 2017-06-08 | B32: =W28 -> 59199 | C32: =X28 -> 16128 | D32: =Y28 -> 11928 | E32: 26980 | F32: 19159 | N32: =M32+M33+M34+M35 -> 0 | Q32: =P32+P33+P34+P35 -> 0 | T32: =S32+S33+S34+S35 -> 0 | V32: =Q32+T32 -> 0 | W32: 59199 | X32: 16128 | Y32: 11928 | Z32: 26980 | AA32: 19159
A33: 2017-06-08
A34: 2017-06-08
A35: 2017-06-08
A36: 2017-06-09 | B36: =W32 -> 59199 | C36: =X32 -> 16128 | D36: =Y32 -> 11928 | E36: =Z32 -> 26980 | F36: =AA32 -> 19159 | N36: =M36+M37+M38+M39 -> 0 | Q36: =P36+P37+P38+P39 -> 0 | T36: =S36+S37+S38+S39 -> 0 | V36: =Q36+T36 -> 0 | W36: 59199 | X36: 16128 | Y36: 11928 | Z36: 26980 | AA36: 19159
A37: 2017-06-09
A38: 2017-06-09
A39: 2017-06-09
A40: 2017-06-10 | B40: =W36 -> 59199 | C40: =X36 -> 16128 | D40: =Y36 -> 11928 | E40: =Z36 -> 26980 | F40: =AA36 -> 19159 | N40: =M40+M41+M42+M43 -> 0 | Q40: =P40+P41+P42+P43 -> 0 | T40: =S40+S41+S42+S43 -> 0 | V40: =Q40+T40 -> 0 | W40: 59199 | X40: 16128 | Y40: 11928 | Z40: 26980 | AA40: 19159
A41: 2017-06-10
A42: 2017-06-10
A43: 2017-06-10
A44: 2017-06-11 | B44: =W40 -> 59199 | C44: =X40 -> 16128 | D44: =Y40 -> 11928 | E44: =Z40 -> 26980 | F44: =AA40 -> 19159 | N44: =M44+M45+M46+M47 -> 0 | Q44: =P44+P45+P46+P47 -> 0 | T44: =S44+S45+S46+S47 -> 0 | V44: =Q44+T44 -> 0 | W44: 59199 | X44: =C44+H44-Q44 -> 16128 | Y44: =D44+I44-T44 -> 11928 | Z44: 26980 | AA44: 19159
A45: 2017-06-11
A46: 2017-06-11
A47: 2017-06-11
A48: 2017-06-12 | B48: =W44 -> 59199 | C48: =X44 -> 16128 | D48: =Y44 -> 11928 | E48: =Z44 -> 26980 | F48: =AA44 -> 19159 | N48: =M48+M49+M50+M51 -> 0 | Q48: =P48+P49+P50+P51 -> 0 | T48: =S48+S49+S50+S51 -> 0 | V48: =Q48+T48 -> 0 | W48: 59199 | X48: 16128 | Y48: 11928 | Z48: 26980 | AA48: 19159
A49: 2017-06-12
A50: 2017-06-12
A51: 2017-06-12
A52: 2017-06-13 | B52: =W48 -> 59199 | C52: =X48 -> 16128 | D52: =Y48 -> 11928 | E52: =Z48 -> 26980 | F52: =AA48 -> 19159 | N52: =M52+M53+M54+M55 -> 0 | Q52: =P52+P53+P54+P55 -> 0 | T52: =S52+S53+S54+S55 -> 0 | V52: =Q52+T52 -> 0 | W52: 59199 | X52: 16128 | Y52: 11928 | Z52: 26980 | AA52: 19159
A53: 2017-06-13
A54: 2017-06-13
A55: 2017-06-13
A56: 2017-06-14 | B56: =W52 -> 59199 | C56: =X52 -> 16128 | D56: =Y52 -> 11928 | E56: =Z52 -> 26980 | F56: =AA52 -> 19159 | N56: =M56+M57+M58+M59 -> 0 | Q56: =P56+P57+P58+P59 -> 0 | T56: =S56+S57+S58+S59 -> 0 | V56: =Q56+T56 -> 0 | W56: 59199 | X56: 16128 | Y56: =D56+I56-T56 -> 11928 | Z56: 26980 | AA56: =F56+K56-V56 -> 19159
A57: 2017-06-14
A58: 2017-06-14
A59: 2017-06-14
A60: 2017-06-15 | B60: =W56 -> 59199 | C60: 16128 | D60: 11928 | E60: 26980 | F60: 19159 | N60: =M60+M61+M62+M63 -> 0 | Q60: =P60+P61+P62+P63 -> 0 | T60: =S60+S61+S62+S63 -> 0 | V60: =Q60+T60 -> 0 | W60: 59199 | X60: 16128 | Y60: 11928 | Z60: 26980 | AA60: =F60+K60-V60 -> 19159
A61: 2017-06-15
A62: 2017-06-15
A63: 2017-06-15
A64: 2017-06-16 | B64: =W60 -> 59199 | C64: =X60 -> 16128 | D64: =Y60 -> 11928 | E64: =Z60 -> 26980 | F64: =AA60 -> 19159 | N64: =M64+M65+M66+M67 -> 0 | Q64: =P64+P65+P66+P67 -> 0 | T64: =S64+S65+S66+S67 -> 0 | V64: =Q64+T64 -> 0 | W64: 59199 | X64: 16128 | Y64: 11928 | Z64: 26980 | AA64: 19159
A65: 2017-06-16
A66: 2017-06-16
A67: 2017-06-16
A68: 2017-06-17 | B68: =W64 -> 59199 | C68: =X64 -> 16128 | D68: =Y64 -> 11928 | E68: =Z64 -> 26980 | F68: =AA64 -> 19159 | N68: =M68+M69+M70+M71 -> 0 | Q68: =P68+P69+P70+P71 -> 0 | T68: =S68+S69+S70+S71 -> 0 | V68: =Q68+T68 -> 0 | W68: 59199 | X68: 16128 | Y68: 11928 | Z68: 26980 | AA68: 19159
A69: 2017-06-17
A70: 2017-06-17
A71: 2017-06-17
A72: 2017-06-18 | B72: =W68 -> 59199 | C72: =X68 -> 16128 | D72: =Y68 -> 11928 | E72: =Z68 -> 26980 | F72: =AA68 -> 19159 | N72: =M72+M73+M74+M75 -> 0 | Q72: =P72+P73+P74+P75 -> 0 | T72: =S72+S73+S74+S75 -> 0 | V72: =Q72+T72 -> 0 | W72: 59199 | X72: 16128 | Y72: 11928 | Z72: 26980 | AA72: 19159
A73: 2017-06-18
A74: 2017-06-18
A75: 2017-06-18
A76: 2017-06-19 | B76: =W72 -> 59199 | C76: =X72 -> 16128 | D76: =Y72 -> 11928 | E76: =Z72 -> 26980 | F76: =AA72 -> 19159 | N76: =M76+M77+M78+M79 -> 0 | Q76: =P76+P77+P78+P79 -> 0 | T76: =S76+S77+S78+S79 -> 0 | V76: =Q76+T76 -> 0 | W76: 59199 | X76: 16128 | Y76: 11928 | Z76: 26980 | AA76: 19159
A77: 2017-06-19
A78: 2017-06-19
A79: 2017-06-19
A80: 2017-06-20 | B80: =W76 -> 59199 | C80: =X76 -> 16128 | D80: =Y76 -> 11928 | E80: =Z76 -> 26980 | F80: =AA76 -> 19159 | N80: =M80+M81+M82+M83 -> 0 | Q80: =P80+P81+P82+P83 -> 0 | T80: =S80+S81+S82+S83 -> 0 | V80: =Q80+T80 -> 0 | W80: 59199 | X80: 16128 | Y80: 11928 | Z80: 26980 | AA80: 19159
A81: 2017-06-20
A82: 2017-06-20
A83: 2017-06-20
A84: 2017-06-21 | B84: =W80 -> 59199 | C84: =X80 -> 16128 | D84: =Y80 -> 11928 | E84: =Z80 -> 26980 | F84: =AA80 -> 19159 | N84: =M84+M85+M86+M87 -> 0 | Q84: =P84+P85+P86+P87 -> 0 | T84: =S84+S85+S86+S87 -> 0 | V84: =Q84+T84 -> 0 | W84: 59199 | X84: 16128 | Y84: 11928 | Z84: 26980 | AA84: 19159
A85: 2017-06-21
A86: 2017-06-21
A87: 2017-06-21
A88: 2017-06-22 | B88: =W84 -> 59199 | C88: =X84 -> 16128 | D88: =Y84 -> 11928 | E88: =Z84 -> 26980 | F88: =AA84 -> 19159 | N88: =M88+M89+M90+M91 -> 0 | Q88: =P88+P89+P90+P91 -> 0 | T88: =S88+S89+S90+S91 -> 0 | V88: =Q88+T88 -> 0 | W88: 59199 | X88: 16128 | Y88: 11928 | Z88: 26980 | AA88: 19159
A89: 2017-06-22
A90: 2017-06-22
A91: 2017-06-22
A92: 2017-06-23 | B92: =W88 -> 59199 | C92: =X88 -> 16128 | D92: =Y88 -> 11928 | E92: =Z88 -> 26980 | F92: =AA88 -> 19159 | N92: =M92+M93+M94+M95 -> 0 | Q92: =P92+P93+P94+P95 -> 0 | T92: =S92+S93+S94+S95 -> 0 | V92: =Q92+T92 -> 0 | W92: 59199 | X92: 16128 | Y92: 11928 | Z92: 26980 | AA92: 19159
A93: 2017-06-23
A94: 2017-06-23
A95: 2017-06-23
A96: 2017-06-24 | B96: =W92 -> 59199 | C96: =X92 -> 16128 | D96: =Y92 -> 11928 | E96: =Z92 -> 26980 | F96: =AA92 -> 19159 | N96: =M96+M97+M98+M99 -> 0 | Q96: =P96+P97+P98+P99 -> 0 | T96: =S96+S97+S98+S99 -> 0 | V96: =Q96+T96 -> 0 | W96: 59199 | X96: 16128 | Y96: 11928 | Z96: 26980 | AA96: 19159
A97: 2017-06-24
A98: 2017-06-24
A99: 2017-06-24
A100: 2017-06-25 | B100: =W96 -> 59199 | C100: =X96 -> 16128 | D100: =Y96 -> 11928 | E100: =Z96 -> 26980 | F100: =AA96 -> 19159 | N100: =M100+M101+M102+M103 -> 0 | Q100: =P100+P101+P102+P103 -> 0 | T100: =S100+S101+S102+S103 -> 0 | V100: =Q100+T100 -> 0 | W100: 59199 | X100: 16128 | Y100: 11928 | Z100: 26980 | AA100: 19159
A101: 2017-06-25
A102: 2017-06-25
A103: 2017-06-25
A104: 2017-06-26 | B104: =W100 -> 59199 | C104: =X100 -> 16128 | D104: =Y100 -> 11928 | E104: =Z100 -> 26980 | F104: =AA100 -> 19159 | N104: =M104+M105+M106+M107 -> 0 | Q104: =P104+P105+P106+P107 -> 0 | T104: =S104+S105+S106+S107 -> 0 | V104: =Q104+T104 -> 0 | W104: 59199 | X104: 16128 | Y104: 11928 | Z104: 26980 | AA104: 19159
A105: 2017-06-26
A106: 2017-06-26
A107: 2017-06-26
A108: 2017-06-27 | B108: =W104 -> 59199 | C108: =X104 -> 16128 | D108: =Y104 -> 11928 | E108: =Z104 -> 26980 | F108: =AA104 -> 19159 | N108: =M108+M109+M110+M111 -> 0 | Q108: =P108+P109+P110+P111 -> 0 | T108: =S108+S109+S110+S111 -> 0 | V108: =Q108+T108 -> 0 | W108: 59199 | X108: 16128 | Y108: 11928 | Z108: 26980 | AA108: 19159
A109: 2017-06-27
A110: 2017-06-27
A111: 2017-06-27
A112: 2017-06-28 | B112: =W108 -> 59199 | C112: =X108 -> 16128 | D112: =Y108 -> 11928 | E112: =Z108 -> 26980 | F112: =AA108 -> 19159 | N112: =M112+M113+M114+M115 -> 0 | Q112: =P112+P113+P114+P115 -> 0 | T112: =S112+S113+S114+S115 -> 0 | V112: =Q112+T112 -> 0 | W112: 59199 | X112: 16128 | Y112: 11928 | Z112: 26980 | AA112: 19159
A113: 2017-06-28
A114: 2017-06-28
A115: 2017-06-28
A116: 2017-06-29 | B116: =W112 -> 59199 | C116: =X112 -> 16128 | D116: =Y112 -> 11928 | E116: =Z112 -> 26980 | F116: =AA112 -> 19159 | N116: =M116+M117+M118+M119 -> 0 | Q116: =P116+P117+P118+P119 -> 0 | T116: =S116+S117+S118+S119 -> 0 | V116: =Q116+T116 -> 0 | W116: 59199 | X116: 16128 | Y116: 11928 | Z116: 26980 | AA116: 19159
A117: 2017-06-29
A118: 2017-06-29
A119: 2017-06-29
A120: 2017-06-30 | B120: =W116 -> 59199 | C120: =X116 -> 16128 | D120: =Y116 -> 11928 | E120: =Z116 -> 26980 | F120: =AA116 -> 19159 | N120: =M120+M121+M122+M123 -> 0 | Q120: =P120+P121+P122+P123 -> 0 | T120: =S120+S121+S122+S123 -> 0 | V120: =Q120+T120 -> 0 | W120: =B120+G123-N123 -> 59199 | X120: =C120+H123-Q123 -> 16128 | Y120: =D120+I123-T123 -> 11928 | Z120: =E120+J123-U123 -> 26980 | AA120: =F120+K123-V123 -> 19159
A121: 2017-06-30
A122: 2017-06-30
A123: 2017-06-30
A125: Итого | B125: =B120 -> 59199 | C125: =C120 -> 16128 | D125: =D120 -> 11928 | E125: =E120 -> 26980 | F125: =F120 -> 19159 | G125: =G4+G8+G12+G16+G20+G24+G28+G32+G36+G40+G46+G48+G52+G56+G60+G64+G68+G72+G76+G80+G84+G88+G92+G96+G100+G104+G108+G112+G116+G120 -> 0 | H125: =H4+H8+H12+H16+H20+H24+H28+H32+H36+H40+H46+H48+H52+H56+H60+H64+H68+H72+H76+H80+H84+H88+H92+H96+H100+H104+H108+H112+H116+H120 -> 0 | I125: =I4+I8+I12+I16+I20+I24+I28+I32+I36+I40+I46+I48+I52+I56+I60+I64+I68+I72+I76+I80+I84+I88+I92+I96+I100+I104+I108+I112+I116+I120 -> 0 | J125: =J4+J8+J12+J16+J20+J24+J28+J32+J36+J40+J46+J48+J52+J56+J60+J64+J68+J72+J76+J80+J84+J88+J92+J96+J100+J104+J108+J112+J116+J120 -> 0 | K125: =K4+K8+K12+K16+K20+K24+K28+K32+K36+K40+K46+K48+K52+K56+K60+K64+K68+K72+K76+K80+K84+K88+K92+K96+K100+K104+K108+K112+K116+K120 -> 0 | N125: =N4+N8+N12+N16+N20+N24+N28+N32+N36+N40+N46+N48+N52+N56+N60+N64+N68+N72+N76+N80+N84+N88+N92+N96+N100+N104+N108+N112+N116+N120 -> 1782 | Q125: =Q4+Q8+Q12+Q16+Q20+Q24+Q28+Q32+Q36+Q40+Q46+Q48+Q52+Q56+Q60+Q64+Q68+Q72+Q76+Q80+Q84+Q88+Q92+Q96+Q100+Q104+Q108+Q112+Q116+Q120 -> 4914 | T125: =T4+T8+T12+T16+T20+T24+T28+T32+T36+T40+T46+T48+T52+T56+T60+T64+T68+T72+T76+T80+T84+T88+T92+T96+T100+T104+T108+T112+T116+T120 -> 100 | U125: =U4+U8+U12+U16+U20+U24+U28+U32+U36+U40+U46+U48+U52+U56+U60+U64+U68+U72+U76+U80+U84+U88+U92+U96+U100+U104+U108+U112+U116+U120 -> 0 | V125: =V4+V8+V12+V16+V20+V24+V28+V32+V36+V40+V44+V48+V52+V56+V60+V64+V68+V72+V76+V80+V84+V88+V92+V96+V100+V104+V108+V112+V116+V120 -> 5014 | W125: =W120 -> 59199 | X125: =X120 -> 16128 | Y125: =Y120 -> 11928 | Z125: =Z120 -> 26980 | AA125: =AA120 -> 19159

Sheet Июль
A1: Движние ГП за Июль 2017 года
A2: N/N | B2: Остаток на начало периода | G2: Приход | L2: Продано банки 1 литр | O2: Продано банка 2,4 литр | R2: Продано банка 3 литр | U2: Продоно Крышки № 5 | V2: Продоно Крышка № 9;10 | W2: Остаток на конец периода
B3: 1 литр | C3: 2,4 литра | D3: 3 литр | E3: Крышка № 5 | F3: Крышка № 9;10 | G3: 1 литр | H3: 2,4 литра | I3: 3 литр | J3: Крышка № 5 | K3: Крышка № 9;10 | L3: Наименование покупателя | M3: Количество | N3: Количество | O3: Наименование покупателя | P3: Количество | Q3: Количество | R3: Наименование покупателя | S3: Количество | T3: Количество | U3: Количество | V3: Количество | W3: 1 литр | X3: 2,4 литра | Y3: 3 литра | Z3: Крышка № 5 | AA3: Крышка № 9;10
A4: 2017-07-01 | B4: 60981 | C4: 21420 | D4: 3131 | E4: 27871 | F4: 24551 | N4: =M4+M5+M6+M7 -> 0 | Q4: =P4+P5+P6+P7 -> 0 | T4: =S4+S5+S6+S7 -> 0 | V4: =Q4+T4 -> 0 | W4: =B4+G4-N4 -> 60981 | X4: =C4+H4-Q4 -> 21420 | Y4: =D4+I4-T4 -> 3131 | Z4: 27871 | AA4: 24551
A5: 2017-07-01
A6: 2017-07-01
A7: 2017-07-01
A8: 2017-07-02 | B8: =W4 -> 60981 | C8: =X4 -> 21420 | D8: =Y4 -> 3131 | E8: =Z4 -> 27871 | F8: =AA4 -> 24551 | N8: =M8+M9+M10+M11 -> 0 | Q8: =P8+P9+P10+P11 -> 0 | T8: =S8+S9+S10+S11 -> 0 | V8: =Q8+T8 -> 0 | W8: 60981 | X8: 21420 | Y8: 3131 | Z8: 27871 | AA8: 24551
A9: 2017-07-02
A10: 2017-07-02
A11: 2017-07-02
A12: 2017-07-03 | B12: =W8 -> 60981 | C12: =X8 -> 21420 | D12: =Y8 -> 3131 | E12: =Z8 -> 27871 | F12: =AA8 -> 24551 | N12: =M12+M13+M14+M15 -> 0 | Q12: =P12+P13+P14+P15 -> 0 | T12: =S12+S13+S14+S15 -> 0 | V12: =Q12+T12 -> 0 | W12: 60981 | X12: 21420 | Y12: 3131 | Z12: 27871 | AA12: 24551
A13: 2017-07-03
A14: 2017-07-03
A15: 2017-07-03
A16: 2017-07-04 | B16: =W12 -> 60981 | C16: =X12 -> 21420 | D16: =Y12 -> 3131 | E16: =Z12 -> 27871 | F16: =AA12 -> 24551 | N16: =M16+M17+M18+M19 -> 0 | Q16: =P16+P17+P18+P19 -> 0 | T16: =S16+S17+S18+S19 -> 0 | V16: =Q16+T16 -> 0 | W16: 60981 | X16: 21420 | Y16: 3131 | Z16: 27871 | AA16: 24551
A17: 2017-07-04
A18: 2017-07-04
A19: 2017-07-04
A20: 2017-07-05 | B20: =W16 -> 60981 | C20: =X16 -> 21420 | D20: =Y16 -> 3131 | E20: =Z16 -> 27871 | F20: =AA16 -> 24551 | N20: =M20+M21+M22+M23 -> 0 | Q20: =P20+P21+P22+P23 -> 0 | T20: =S20+S21+S22+S23 -> 0 | V20: =Q20+T20 -> 0 | W20: 60981 | X20: 21420 | Y20: 3131 | Z20: 27871 | AA20: 24551
A21: 2017-07-05
A22: 2017-07-05
A23: 2017-07-05
A24: 2017-07-06 | B24: =W20 -> 60981 | C24: =X20 -> 21420 | D24: =Y20 -> 3131 | E24: 27871 | F24: 24551 | N24: =M24+M25+M26+M27 -> 0 | Q24: =P24+P25+P26+P27 -> 0 | T24: =S24+S25+S26+S27 -> 0 | V24: =Q24+T24 -> 0 | W24: 60981 | X24: 21420 | Y24: 3131 | Z24: 27871 | AA24: 24551
A25: 2017-07-06
A26: 2017-07-06
A27: 2017-07-06
A28: 2017-07-07 | B28: =W24 -> 60981 | C28: =X24 -> 21420 | D28: =Y24 -> 3131 | E28: =Z24 -> 27871 | F28: =AA24 -> 24551 | N28: =M28+M29+M30+M31 -> 0 | Q28: =P28+P29+P30+P31 -> 0 | T28: =S28+S29+S30+S31 -> 0 | V28: =Q28+T28 -> 0 | W28: 60981 | X28: 21420 | Y28: 3131 | Z28: 27871 | AA28: 24551
A29: 2017-07-07
A30: 2017-07-07
A31: 2017-07-07
A32: 2017-07-08 | B32: =W28 -> 60981 | C32: =X28 -> 21420 | D32: =Y28 -> 3131 | E32: 27871 | F32: 24551 | N32: =M32+M33+M34+M35 -> 0 | Q32: =P32+P33+P34+P35 -> 0 | T32: =S32+S33+S34+S35 -> 0 | V32: =Q32+T32 -> 0 | W32: 60981 | X32: 21420 | Y32: 3131 | Z32: 27871 | AA32: 24551
A33: 2017-07-08
A34: 2017-07-08
A35: 2017-07-08
A36: 2017-07-09 | B36: =W32 -> 60981 | C36: =X32 -> 21420 | D36: =Y32 -> 3131 | E36: =Z32 -> 27871 | F36: =AA32 -> 24551 | N36: =M36+M37+M38+M39 -> 0 | Q36: =P36+P37+P38+P39 -> 0 | T36: =S36+S37+S38+S39 -> 0 | V36: =Q36+T36 -> 0 | W36: 60981 | X36: 21420 | Y36: 3131 | Z36: 27871 | AA36: 24551
A37: 2017-07-09
A38: 2017-07-09
A39: 2017-07-09
A40: 2017-07-10 | B40: =W36 -> 60981 | C40: =X36 -> 21420 | D40: =Y36 -> 3131 | E40: =Z36 -> 27871 | F40: =AA36 -> 24551 | N40: =M40+M41+M42+M43 -> 0 | Q40: =P40+P41+P42+P43 -> 0 | T40: =S40+S41+S42+S43 -> 0 | V40: =Q40+T40 -> 0 | W40: 60981 | X40: 21420 | Y40: 3131 | Z40: 27871 | AA40: 24551
A41: 2017-07-10
A42: 2017-07-10
A43: 2017-07-10
A44: 2017-07-11 | B44: =W40 -> 60981 | C44: =X40 -> 21420 | D44: =Y40 -> 3131 | E44: =Z40 -> 27871 | F44: =AA40 -> 24551 | N44: =M44+M45+M46+M47 -> 0 | Q44: =P44+P45+P46+P47 -> 0 | T44: =S44+S45+S46+S47 -> 0 | V44: =Q44+T44 -> 0 | W44: 60981 | X44: =C44+H44-Q44 -> 21420 | Y44: =D44+I44-T44 -> 3131 | Z44: 27871 | AA44: 24551
A45: 2017-07-11
A46: 2017-07-11
A47: 2017-07-11
A48: 2017-07-12 | B48: =W44 -> 60981 | C48: =X44 -> 21420 | D48: =Y44 -> 3131 | E48: =Z44 -> 27871 | F48: =AA44 -> 24551 | N48: =M48+M49+M50+M51 -> 0 | Q48: =P48+P49+P50+P51 -> 0 | T48: =S48+S49+S50+S51 -> 0 | V48: =Q48+T48 -> 0 | W48: 60981 | X48: 21420 | Y48: 3131 | Z48: 27871 | AA48: 24551
A49: 2017-07-12
A50: 2017-07-12
A51: 2017-07-12
A52: 2017-07-13 | B52: =W48 -> 60981 | C52: =X48 -> 21420 | D52: =Y48 -> 3131 | E52: =Z48 -> 27871 | F52: =AA48 -> 24551 | N52: =M52+M53+M54+M55 -> 0 | Q52: =P52+P53+P54+P55 -> 0 | T52: =S52+S53+S54+S55 -> 0 | V52: =Q52+T52 -> 0 | W52: 60981 | X52: 21420 | Y52: 3131 | Z52: 27871 | AA52: 24551
A53: 2017-07-13
A54: 2017-07-13
A55: 2017-07-13
A56: 2017-07-14 | B56: =W52 -> 60981 | C56: =X52 -> 21420 | D56: =Y52 -> 3131 | E56: =Z52 -> 27871 | F56: =AA52 -> 24551 | N56: =M56+M57+M58+M59 -> 0 | Q56: =P56+P57+P58+P59 -> 0 | T56: =S56+S57+S58+S59 -> 0 | V56: =Q56+T56 -> 0 | W56: 60981 | X56: 21420 | Y56: =D56+I56-T56 -> 3131 | Z56: 27871 | AA56: =F56+K56-V56 -> 24551
A57: 2017-07-14
A58: 2017-07-14
A59: 2017-07-14
A60: 2017-07-15 | B60: =W56 -> 60981 | C60: 21420 | D60: 3131 | E60: 27871 | F60: 24551 | N60: =M60+M61+M62+M63 -> 0 | Q60: =P60+P61+P62+P63 -> 0 | T60: =S60+S61+S62+S63 -> 0 | V60: =Q60+T60 -> 0 | W60: 60981 | X60: 21420 | Y60: 3131 | Z60: 27871 | AA60: =F60+K60-V60 -> 24551
A61: 2017-07-15
A62: 2017-07-15
A63: 2017-07-15
A64: 2017-07-16 | B64: =W60 -> 60981 | C64: =X60 -> 21420 | D64: =Y60 -> 3131 | E64: =Z60 -> 27871 | F64: =AA60 -> 24551 | N64: =M64+M65+M66+M67 -> 0 | Q64: =P64+P65+P66+P67 -> 0 | T64: =S64+S65+S66+S67 -> 0 | V64: =Q64+T64 -> 0 | W64: 60981 | X64: 21420 | Y64: 3131 | Z64: 27871 | AA64: 24551
A65: 2017-07-16
A66: 2017-07-16
A67: 2017-07-16
A68: 2017-07-17 | B68: =W64 -> 60981 | C68: =X64 -> 21420 | D68: =Y64 -> 3131 | E68: =Z64 -> 27871 | F68: =AA64 -> 24551 | N68: =M68+M69+M70+M71 -> 0 | Q68: =P68+P69+P70+P71 -> 0 | T68: =S68+S69+S70+S71 -> 0 | V68: =Q68+T68 -> 0 | W68: 60981 | X68: 21420 | Y68: 3131 | Z68: 27871 | AA68: 24551
A69: 2017-07-17
A70: 2017-07-17
A71: 2017-07-17
A72: 2017-07-18 | B72: =W68 -> 60981 | C72: =X68 -> 21420 | D72: =Y68 -> 3131 | E72: =Z68 -> 27871 | F72: =AA68 -> 24551 | N72: =M72+M73+M74+M75 -> 0 | Q72: =P72+P73+P74+P75 -> 0 | T72: =S72+S73+S74+S75 -> 0 | V72: =Q72+T72 -> 0 | W72: 60981 | X72: 21420 | Y72: 3131 | Z72: 27871 | AA72: 24551
A73: 2017-07-18
A74: 2017-07-18
A75: 2017-07-18
A76: 2017-07-19 | B76: =W72 -> 60981 | C76: =X72 -> 21420 | D76: =Y72 -> 3131 | E76: =Z72 -> 27871 | F76: =AA72 -> 24551 | N76: =M76+M77+M78+M79 -> 0 | Q76: =P76+P77+P78+P79 -> 0 | T76: =S76+S77+S78+S79 -> 0 | V76: =Q76+T76 -> 0 | W76: 60981 | X76: 21420 | Y76: 3131 | Z76: 27871 | AA76: 24551
A77: 2017-07-19
A78: 2017-07-19
A79: 2017-07-19
A80: 2017-07-20 | B80: =W76 -> 60981 | C80: =X76 -> 21420 | D80: =Y76 -> 3131 | E80: =Z76 -> 27871 | F80: =AA76 -> 24551 | N80: =M80+M81+M82+M83 -> 0 | Q80: =P80+P81+P82+P83 -> 0 | T80: =S80+S81+S82+S83 -> 0 | V80: =Q80+T80 -> 0 | W80: 60981 | X80: 21420 | Y80: 3131 | Z80: 27871 | AA80: 24551
A81: 2017-07-20
A82: 2017-07-20
A83: 2017-07-20
A84: 2017-07-21 | B84: =W80 -> 60981 | C84: =X80 -> 21420 | D84: =Y80 -> 3131 | E84: =Z80 -> 27871 | F84: =AA80 -> 24551 | N84: =M84+M85+M86+M87 -> 0 | Q84: =P84+P85+P86+P87 -> 0 | T84: =S84+S85+S86+S87 -> 0 | V84: =Q84+T84 -> 0 | W84: 60981 | X84: 21420 | Y84: 3131 | Z84: 27871 | AA84: 24551
A85: 2017-07-21
A86: 2017-07-21
A87: 2017-07-21
A88: 2017-07-22 | B88: =W84 -> 60981 | C88: =X84 -> 21420 | D88: =Y84 -> 3131 | E88: =Z84 -> 27871 | F88: =AA84 -> 24551 | N88: =M88+M89+M90+M91 -> 0 | Q88: =P88+P89+P90+P91 -> 0 | T88: =S88+S89+S90+S91 -> 0 | V88: =Q88+T88 -> 0 | W88: 60981 | X88: 21420 | Y88: 3131 | Z88: 27871 | AA88: 24551
A89: 2017-07-22
A90: 2017-07-22
A91: 2017-07-22
A92: 2017-07-23 | B92: =W88 -> 60981 | C92: =X88 -> 21420 | D92: =Y88 -> 3131 | E92: =Z88 -> 27871 | F92: =AA88 -> 24551 | N92: =M92+M93+M94+M95 -> 0 | Q92: =P92+P93+P94+P95 -> 0 | T92: =S92+S93+S94+S95 -> 0 | V92: =Q92+T92 -> 0 | W92: 60981 | X92: 21420 | Y92: 3131 | Z92: 27871 | AA92: 24551
A93: 2017-07-23
A94: 2017-07-23
A95: 2017-07-23
A96: 2017-07-24 | B96: =W92 -> 60981 | C96: =X92 -> 21420 | D96: =Y92 -> 3131 | E96: =Z92 -> 27871 | F96: =AA92 -> 24551 | N96: =M96+M97+M98+M99 -> 0 | Q96: =P96+P97+P98+P99 -> 0 | T96: =S96+S97+S98+S99 -> 0 | V96: =Q96+T96 -> 0 | W96: 60981 | X96: 21420 | Y96: 3131 | Z96: 27871 | AA96: 24551
A97: 2017-07-24
A98: 2017-07-24
A99: 2017-07-24
A100: 2017-07-25 | B100: =W96 -> 60981 | C100: =X96 -> 21420 | D100: =Y96 -> 3131 | E100: =Z96 -> 27871 | F100: =AA96 -> 24551 | N100: =M100+M101+M102+M103 -> 0 | Q100: =P100+P101+P102+P103 -> 0 | T100: =S100+S101+S102+S103 -> 0 | V100: =Q100+T100 -> 0 | W100: 60981 | X100: 21420 | Y100: 3131 | Z100: 27871 | AA100: 24551
A101: 2017-07-25
A102: 2017-07-25
A103: 2017-07-25
A104: 2017-07-26 | B104: =W100 -> 60981 | C104: =X100 -> 21420 | D104: =Y100 -> 3131 | E104: =Z100 -> 27871 | F104: =AA100 -> 24551 | N104: =M104+M105+M106+M107 -> 0 | Q104: =P104+P105+P106+P107 -> 0 | T104: =S104+S105+S106+S107 -> 0 | V104: =Q104+T104 -> 0 | W104: 60981 | X104: 21420 | Y104: 3131 | Z104: 27871 | AA104: 24551
A105: 2017-07-26
A106: 2017-07-26
A107: 2017-07-26
A108: 2017-07-27 | B108: =W104 -> 60981 | C108: =X104 -> 21420 | D108: =Y104 -> 3131 | E108: =Z104 -> 27871 | F108: =AA104 -> 24551 | N108: =M108+M109+M110+M111 -> 0 | Q108: =P108+P109+P110+P111 -> 0 | T108: =S108+S109+S110+S111 -> 0 | V108: =Q108+T108 -> 0 | W108: 60981 | X108: 21420 | Y108: 3131 | Z108: 27871 | AA108: 24551
A109: 2017-07-27
A110: 2017-07-27
A111: 2017-07-27
A112: 2017-07-28 | B112: =W108 -> 60981 | C112: =X108 -> 21420 | D112: =Y108 -> 3131 | E112: =Z108 -> 27871 | F112: =AA108 -> 24551 | N112: =M112+M113+M114+M115 -> 0 | Q112: =P112+P113+P114+P115 -> 0 | T112: =S112+S113+S114+S115 -> 0 | V112: =Q112+T112 -> 0 | W112: 60981 | X112: 21420 | Y112: 3131 | Z112: 27871 | AA112: 24551
A113: 2017-07-28
A114: 2017-07-28
A115: 2017-07-28
A116: 2017-07-29 | B116: =W112 -> 60981 | C116: =X112 -> 21420 | D116: =Y112 -> 3131 | E116: =Z112 -> 27871 | F116: =AA112 -> 24551 | N116: =M116+M117+M118+M119 -> 0 | Q116: =P116+P117+P118+P119 -> 0 | T116: =S116+S117+S118+S119 -> 0 | V116: =Q116+T116 -> 0 | W116: 60981 | X116: 21420 | Y116: 3131 | Z116: 27871 | AA116: 24551
A117: 2017-07-29
A118: 2017-07-29
A119: 2017-07-29
A120: 2017-07-30 | B120: =W116 -> 60981 | C120: =X116 -> 21420 | D120: =Y116 -> 3131 | E120: =Z116 -> 27871 | F120: =AA116 -> 24551 | N120: =M120+M121+M122+M123 -> 0 | Q120: =P120+P121+P122+P123 -> 0 | T120: =S120+S121+S122+S123 -> 0 | V120: =Q120+T120 -> 0 | W120: =B120+G123-N123 -> 60981 | X120: =C120+H123-Q123 -> 21420 | Y120: =D120+I123-T123 -> 3131 | Z120: =E120+J123-U123 -> 27871 | AA120: =F120+K123-V123 -> 24551
A121: 2017-07-30
A122: 2017-07-30
A123: 2017-07-30
A124: 2017-07-31 | B124: =W120 -> 60981 | C124: =X120 -> 21420 | D124: =Y120 -> 3131 | E124: =Z120 -> 27871 | F124: =AA120 -> 24551 | N124: =M124+M125+M126+M127 -> 0 | Q124: =P124+P125+P126+P127 -> 0 | T124: =S124+S125+S126+S127 -> 0 | V124: =Q124+T124 -> 0 | W124: =B124+G127-N127 -> 60981 | X124: =C124+H127-Q127 -> 21420 | Y124: =D124+I127-T127 -> 3131 | Z124: =E124+J127-U127 -> 27871 | AA124: =F124+K127-V127 -> 24551
A125: 2017-07-31
A126: 2017-07-31
A127: 2017-07-31
A129: Итого | B129: =B124 -> 60981 | C129: =C124 -> 21420 | D129: =D124 -> 3131 | E129: =E124 -> 27871 | F129: =F124 -> 24551 | G129: =G4+G8+G12+G16+G20+G24+G28+G32+G36+G40+G46+G48+G52+G56+G60+G64+G68+G72+G76+G80+G84+G88+G92+G96+G100+G104+G108+G112+G116+G120+G124 -> 0 | H129: =H4+H8+H12+H16+H20+H24+H28+H32+H36+H40+H46+H48+H52+H56+H60+H64+H68+H72+H76+H80+H84+H88+H92+H96+H100+H104+H108+H112+H116+H120+H124 -> 0 | I129: =I4+I8+I12+I16+I20+I24+I28+I32+I36+I40+I46+I48+I52+I56+I60+I64+I68+I72+I76+I80+I84+I88+I92+I96+I100+I104+I108+I112+I116+I120+I124 -> 0 | J129: =J4+J8+J12+J16+J20+J24+J28+J32+J36+J40+J46+J48+J52+J56+J60+J64+J68+J72+J76+J80+J84+J88+J92+J96+J100+J104+J108+J112+J116+J120+J124 -> 0 | K129: =K4+K8+K12+K16+K20+K24+K28+K32+K36+K40+K46+K48+K52+K56+K60+K64+K68+K72+K76+K80+K84+K88+K92+K96+K100+K104+K108+K112+K116+K120+K124 -> 0 | N129: =N4+N8+N12+N16+N20+N24+N28+N32+N36+N40+N46+N48+N52+N56+N60+N64+N68+N72+N76+N80+N84+N88+N92+N96+N100+N104+N108+N112+N116+N120+N124 -> 0 | Q129: =Q4+Q8+Q12+Q16+Q20+Q24+Q28+Q32+Q36+Q40+Q46+Q48+Q52+Q56+Q60+Q64+Q68+Q72+Q76+Q80+Q84+Q88+Q92+Q96+Q100+Q104+Q108+Q112+Q116+Q120+Q124 -> 0 | T129: =T4+T8+T12+T16+T20+T24+T28+T32+T36+T40+T46+T48+T52+T56+T60+T64+T68+T72+T76+T80+T84+T88+T92+T96+T100+T104+T108+T112+T116+T120+T124 -> 0 | U129: =U4+U8+U12+U16+U20+U24+U28+U32+U36+U40+U46+U48+U52+U56+U60+U64+U68+U72+U76+U80+U84+U88+U92+U96+U100+U104+U108+U112+U116+U120+U124 -> 0 | V129: =V4+V8+V12+V16+V20+V24+V28+V32+V36+V40+V46+V48+V52+V56+V60+V64+V68+V72+V76+V80+V84+V88+V92+V96+V100+V104+V108+V112+V116+V120+V124 -> 0 | W129: =W124 -> 60981 | X129: =X124 -> 21420 | Y129: =Y124 -> 3131 | Z129: =Z124 -> 27871 | AA129: =AA124 -> 24551

Sheet Сводный лист
A1: Сводный лист за 2017 год
A2: N/N | B2: Остаток на начало периода | G2: Приход | L2: Продано банки 1 л | M2: Продано банка 2,4 л | N2: Продано банка 3 л | O2: Продоно Крышки № 5 | P2: Продоно Крышка № 9;10 | Q2: Остаток на конец периода
B3: 1 литр | C3: 2,4 литра | D3: 3 литр | E3: Крышка № 5 | F3: Крышка № 9;10 | G3: 1 литр | H3: 2,4 литра | I3: 3 литра | J3: Крышка № 5 | K3: Крышка № 9;10 | L3: Количество | M3: Количество | N3: Количество | O3: Количество | P3: Количество | Q3: 1 литр | R3: 2,4 литра | S3: 3 литра | T3: Крышка № 5 | U3: Крышка № 9;10
A4: Май | B4: =IFERROR(INDEX(INDIRECT("'"&$A4&"'!$A:$AA"),MATCH("Итого",INDIRECT("'"&$A4&"'!$A:$A"),),COLUMN()+COUNTIF($B$2:B$2,"Продано бан*")*2),"") -> 89493 | C4: =IFERROR(INDEX(INDIRECT("'"&$A4&"'!$A:$AA"),MATCH("Итого",INDIRECT("'"&$A4&"'!$A:$A"),),COLUMN()+COUNTIF($B$2:C$2,"Продано бан*")*2),"") -> 1311 | D4: =IFERROR(INDEX(INDIRECT("'"&$A4&"'!$A:$AA"),MATCH("Итого",INDIRECT("'"&$A4&"'!$A:$A"),),COLUMN()+COUNTIF($B$2:D$2,"Продано бан*")*2),"") -> 5189 | E4: =IFERROR(INDEX(INDIRECT("'"&$A4&"'!$A:$AA"),MATCH("Итого",INDIRECT("'"&$A4&"'!$A:$A"),),COLUMN()+COUNTIF($B$2:E$2,"Продано бан*")*2),"") -> 55492 | F4: =IFERROR(INDEX(INDIRECT("'"&$A4&"'!$A:$AA"),MATCH("Итого",INDIRECT("'"&$A4&"'!$A:$A"),),COLUMN()+COUNTIF($B$2:F$2,"Продано бан*")*2),"") -> 6500 | G4: =IFERROR(INDEX(INDIRECT("'"&$A4&"'!$A:$AA"),MATCH("Итого",INDIRECT("'"&$A4&"'!$A:$A"),),COLUMN()+COUNTIF($B$2:G$2,"Продано бан*")*2),"") -> 0 | H4: =IFERROR(INDEX(INDIRECT("'"&$A4&"'!$A:$AA"),MATCH("Итого",INDIRECT("'"&$A4&"'!$A:$A"),),COLUMN()+COUNTIF($B$2:H$2,"Продано бан*")*2),"") -> 21420 | I4: =IFERROR(INDEX(INDIRECT("'"&$A4&"'!$A:$AA"),MATCH("Итого",INDIRECT("'"&$A4&"'!$A:$A"),),COLUMN()+COUNTIF($B$2:I$2,"Продано бан*")*2),"") -> 8897 | J4: =IFERROR(INDEX(INDIRECT("'"&$A4&"'!$A:$AA"),MATCH("Итого",INDIRECT("'"&$A4&"'!$A:$A"),),COLUMN()+COUNTIF($B$2:J$2,"Продано бан*")*2),"") -> 0 | K4: =IFERROR(INDEX(INDIRECT("'"&$A4&"'!$A:$AA"),MATCH("Итого",INDIRECT("'"&$A4&"'!$A:$A"),),COLUMN()+COUNTIF($B$2:K$2,"Продано бан*")*2),"") -> 21420 | L4: =IFERROR(INDEX(INDIRECT("'"&$A4&"'!$A:$AA"),MATCH("Итого",INDIRECT("'"&$A4&"'!$A:$A"),),COLUMN()+COUNTIF($B$2:L$2,"Продано бан*")*2),"") -> 28512 | M4: =IFERROR(INDEX(INDIRECT("'"&$A4&"'!$A:$AA"),MATCH("Итого",INDIRECT("'"&$A4&"'!$A:$A"),),COLUMN()+COUNTIF($B$2:M$2,"Продано бан*")*2),"") -> 2823 | N4: =IFERROR(INDEX(INDIRECT("'"&$A4&"'!$A:$AA"),MATCH("Итого",INDIRECT("'"&$A4&"'!$A:$A"),),COLUMN()+COUNTIF($B$2:N$2,"Продано бан*")*2),"") -> 2058 | O4: =IFERROR(INDEX(INDIRECT("'"&$A4&"'!$A:$AA"),MATCH("Итого",INDIRECT("'"&$A4&"'!$A:$A"),),COLUMN()+COUNTIF($B$2:O$2,"Продано бан*")*2),"") -> 28512 | P4: =IFERROR(INDEX(INDIRECT("'"&$A4&"'!$A:$AA"),MATCH("Итого",INDIRECT("'"&$A4&"'!$A:$A"),),COLUMN()+COUNTIF($B$2:P$2,"Продано бан*")*2),"") -> 4881 | Q4: =IFERROR(INDEX(INDIRECT("'"&$A4&"'!$A:$AA"),MATCH("Итого",INDIRECT("'"&$A4&"'!$A:$A"),),COLUMN()+COUNTIF($B$2:Q$2,"Продано бан*")*2),"") -> 60981 | R4: =IFERROR(INDEX(INDIRECT("'"&$A4&"'!$A:$AA"),MATCH("Итого",INDIRECT("'"&$A4&"'!$A:$A"),),COLUMN()+COUNTIF($B$2:R$2,"Продано бан*")*2),"") -> 21042 | S4: =IFERROR(INDEX(INDIRECT("'"&$A4&"'!$A:$AA"),MATCH("Итого",INDIRECT("'"&$A4&"'!$A:$A"),),COLUMN()+COUNTIF($B$2:S$2,"Продано бан*")*2),"") -> 12028 | T4: =IFERROR(INDEX(INDIRECT("'"&$A4&"'!$A:$AA"),MATCH("Итого",INDIRECT("'"&$A4&"'!$A:$A"),),COLUMN()+COUNTIF($B$2:T$2,"Продано бан*")*2),"") -> 26980 | U4: =IFERROR(INDEX(INDIRECT("'"&$A4&"'!$A:$AA"),MATCH("Итого",INDIRECT("'"&$A4&"'!$A:$A"),),COLUMN()+COUNTIF($B$2:U$2,"Продано бан*")*2),"") -> 24173
A5: Июнь | B5: =IFERROR(INDEX(INDIRECT("'"&$A5&"'!$A:$AA"),MATCH("Итого",INDIRECT("'"&$A5&"'!$A:$A"),),COLUMN()+COUNTIF($B$2:B$2,"Продано бан*")*2),"") -> 59199 | C5: =IFERROR(INDEX(INDIRECT("'"&$A5&"'!$A:$AA"),MATCH("Итого",INDIRECT("'"&$A5&"'!$A:$A"),),COLUMN()+COUNTIF($B$2:C$2,"Продано бан*")*2),"") -> 16128 | D5: =IFERROR(INDEX(INDIRECT("'"&$A5&"'!$A:$AA"),MATCH("Итого",INDIRECT("'"&$A5&"'!$A:$A"),),COLUMN()+COUNTIF($B$2:D$2,"Продано бан*")*2),"") -> 11928 | E5: =IFERROR(INDEX(INDIRECT("'"&$A5&"'!$A:$AA"),MATCH("Итого",INDIRECT("'"&$A5&"'!$A:$A"),),COLUMN()+COUNTIF($B$2:E$2,"Продано бан*")*2),"") -> 26980 | F5: =IFERROR(INDEX(INDIRECT("'"&$A5&"'!$A:$AA"),MATCH("Итого",INDIRECT("'"&$A5&"'!$A:$A"),),COLUMN()+COUNTIF($B$2:F$2,"Продано бан*")*2),"") -> 19159 | G5: =IFERROR(INDEX(INDIRECT("'"&$A5&"'!$A:$AA"),MATCH("Итого",INDIRECT("'"&$A5&"'!$A:$A"),),COLUMN()+COUNTIF($B$2:G$2,"Продано бан*")*2),"") -> 0 | H5: =IFERROR(INDEX(INDIRECT("'"&$A5&"'!$A:$AA"),MATCH("Итого",INDIRECT("'"&$A5&"'!$A:$A"),),COLUMN()+COUNTIF($B$2:H$2,"Продано бан*")*2),"") -> 0 | I5: =IFERROR(INDEX(INDIRECT("'"&$A5&"'!$A:$AA"),MATCH("Итого",INDIRECT("'"&$A5&"'!$A:$A"),),COLUMN()+COUNTIF($B$2:I$2,"Продано бан*")*2),"") -> 0 | J5: =IFERROR(INDEX(INDIRECT("'"&$A5&"'!$A:$AA"),MATCH("Итого",INDIRECT("'"&$A5&"'!$A:$A"),),COLUMN()+COUNTIF($B$2:J$2,"Продано бан*")*2),"") -> 0 | K5: =IFERROR(INDEX(INDIRECT("'"&$A5&"'!$A:$AA"),MATCH("Итого",INDIRECT("'"&$A5&"'!$A:$A"),),COLUMN()+COUNTIF($B$2:K$2,"Продано бан*")*2),"") -> 0 | L5: =IFERROR(INDEX(INDIRECT("'"&$A5&"'!$A:$AA"),MATCH("Итого",INDIRECT("'"&$A5&"'!$A:$A"),),COLUMN()+COUNTIF($B$2:L$2,"Продано бан*")*2),"") -> 1782 | M5: =IFERROR(INDEX(INDIRECT("'"&$A5&"'!$A:$AA"),MATCH("Итого",INDIRECT("'"&$A5&"'!$A:$A"),),COLUMN()+COUNTIF($B$2:M$2,"Продано бан*")*2),"") -> 4914 | N5: =IFERROR(INDEX(INDIRECT("'"&$A5&"'!$A:$AA"),MATCH("Итого",INDIRECT("'"&$A5&"'!$A:$A"),),COLUMN()+COUNTIF($B$2:N$2,"Продано бан*")*2),"") -> 100 | O5: =IFERROR(INDEX(INDIRECT("'"&$A5&"'!$A:$AA"),MATCH("Итого",INDIRECT("'"&$A5&"'!$A:$A"),),COLUMN()+COUNTIF($B$2:O$2,"Продано бан*")*2),"") -> 0 | P5: =IFERROR(INDEX(INDIRECT("'"&$A5&"'!$A:$AA"),MATCH("Итого",INDIRECT("'"&$A5&"'!$A:$A"),),COLUMN()+COUNTIF($B$2:P$2,"Продано бан*")*2),"") -> 5014 | Q5: =IFERROR(INDEX(INDIRECT("'"&$A5&"'!$A:$AA"),MATCH("Итого",INDIRECT("'"&$A5&"'!$A:$A"),),COLUMN()+COUNTIF($B$2:Q$2,"Продано бан*")*2),"") -> 59199 | R5: =IFERROR(INDEX(INDIRECT("'"&$A5&"'!$A:$AA"),MATCH("Итого",INDIRECT("'"&$A5&"'!$A:$A"),),COLUMN()+COUNTIF($B$2:R$2,"Продано бан*")*2),"") -> 16128 | S5: =IFERROR(INDEX(INDIRECT("'"&$A5&"'!$A:$AA"),MATCH("Итого",INDIRECT("'"&$A5&"'!$A:$A"),),COLUMN()+COUNTIF($B$2:S$2,"Продано бан*")*2),"") -> 11928 | T5: =IFERROR(INDEX(INDIRECT("'"&$A5&"'!$A:$AA"),MATCH("Итого",INDIRECT("'"&$A5&"'!$A:$A"),),COLUMN()+COUNTIF($B$2:T$2,"Продано бан*")*2),"") -> 26980 | U5: =IFERROR(INDEX(INDIRECT("'"&$A5&"'!$A:$AA"),MATCH("Итого",INDIRECT("'"&$A5&"'!$A:$A"),),COLUMN()+COUNTIF($B$2:U$2,"Продано бан*")*2),"") -> 19159
A6: Июль | B6: =IFERROR(INDEX(INDIRECT("'"&$A6&"'!$A:$AA"),MATCH("Итого",INDIRECT("'"&$A6&"'!$A:$A"),),COLUMN()+COUNTIF($B$2:B$2,"Продано бан*")*2),"") -> 60981 | C6: =IFERROR(INDEX(INDIRECT("'"&$A6&"'!$A:$AA"),MATCH("Итого",INDIRECT("'"&$A6&"'!$A:$A"),),COLUMN()+COUNTIF($B$2:C$2,"Продано бан*")*2),"") -> 21420 | D6: =IFERROR(INDEX(INDIRECT("'"&$A6&"'!$A:$AA"),MATCH("Итого",INDIRECT("'"&$A6&"'!$A:$A"),),COLUMN()+COUNTIF($B$2:D$2,"Продано бан*")*2),"") -> 3131 | E6: =IFERROR(INDEX(INDIRECT("'"&$A6&"'!$A:$AA"),MATCH("Итого",INDIRECT("'"&$A6&"'!$A:$A"),),COLUMN()+COUNTIF($B$2:E$2,"Продано бан*")*2),"") -> 27871 | F6: =IFERROR(INDEX(INDIRECT("'"&$A6&"'!$A:$AA"),MATCH("Итого",INDIRECT("'"&$A6&"'!$A:$A"),),COLUMN()+COUNTIF($B$2:F$2,"Продано бан*")*2),"") -> 24551 | G6: =IFERROR(INDEX(INDIRECT("'"&$A6&"'!$A:$AA"),MATCH("Итого",INDIRECT("'"&$A6&"'!$A:$A"),),COLUMN()+COUNTIF($B$2:G$2,"Продано бан*")*2),"") -> 0 | H6: =IFERROR(INDEX(INDIRECT("'"&$A6&"'!$A:$AA"),MATCH("Итого",INDIRECT("'"&$A6&"'!$A:$A"),),COLUMN()+COUNTIF($B$2:H$2,"Продано бан*")*2),"") -> 0 | I6: =IFERROR(INDEX(INDIRECT("'"&$A6&"'!$A:$AA"),MATCH("Итого",INDIRECT("'"&$A6&"'!$A:$A"),),COLUMN()+COUNTIF($B$2:I$2,"Продано бан*")*2),"") -> 0 | J6: =IFERROR(INDEX(INDIRECT("'"&$A6&"'!$A:$AA"),MATCH("Итого",INDIRECT("'"&$A6&"'!$A:$A"),),COLUMN()+COUNTIF($B$2:J$2,"Продано бан*")*2),"") -> 0 | K6: =IFERROR(INDEX(INDIRECT("'"&$A6&"'!$A:$AA"),MATCH("Итого",INDIRECT("'"&$A6&"'!$A:$A"),),COLUMN()+COUNTIF($B$2:K$2,"Продано бан*")*2),"") -> 0 | L6: =IFERROR(INDEX(INDIRECT("'"&$A6&"'!$A:$AA"),MATCH("Итого",INDIRECT("'"&$A6&"'!$A:$A"),),COLUMN()+COUNTIF($B$2:L$2,"Продано бан*")*2),"") -> 0 | M6: =IFERROR(INDEX(INDIRECT("'"&$A6&"'!$A:$AA"),MATCH("Итого",INDIRECT("'"&$A6&"'!$A:$A"),),COLUMN()+COUNTIF($B$2:M$2,"Продано бан*")*2),"") -> 0 | N6: =IFERROR(INDEX(INDIRECT("'"&$A6&"'!$A:$AA"),MATCH("Итого",INDIRECT("'"&$A6&"'!$A:$A"),),COLUMN()+COUNTIF($B$2:N$2,"Продано бан*")*2),"") -> 0 | O6: =IFERROR(INDEX(INDIRECT("'"&$A6&"'!$A:$AA"),MATCH("Итого",INDIRECT("'"&$A6&"'!$A:$A"),),COLUMN()+COUNTIF($B$2:O$2,"Продано бан*")*2),"") -> 0 | P6: =IFERROR(INDEX(INDIRECT("'"&$A6&"'!$A:$AA"),MATCH("Итого",INDIRECT("'"&$A6&"'!$A:$A"),),COLUMN()+COUNTIF($B$2:P$2,"Продано бан*")*2),"") -> 0 | Q6: =IFERROR(INDEX(INDIRECT("'"&$A6&"'!$A:$AA"),MATCH("Итого",INDIRECT("'"&$A6&"'!$A:$A"),),COLUMN()+COUNTIF($B$2:Q$2,"Продано бан*")*2),"") -> 60981 | R6: =IFERROR(INDEX(INDIRECT("'"&$A6&"'!$A:$AA"),MATCH("Итого",INDIRECT("'"&$A6&"'!$A:$A"),),COLUMN()+COUNTIF($B$2:R$2,"Продано бан*")*2),"") -> 21420 | S6: =IFERROR(INDEX(INDIRECT("'"&$A6&"'!$A:$AA"),MATCH("Итого",INDIRECT("'"&$A6&"'!$A:$A"),),COLUMN()+COUNTIF($B$2:S$2,"Продано бан*")*2),"") -> 3131 | T6: =IFERROR(INDEX(INDIRECT("'"&$A6&"'!$A:$AA"),MATCH("Итого",INDIRECT("'"&$A6&"'!$A:$A"),),COLUMN()+COUNTIF($B$2:T$2,"Продано бан*")*2),"") -> 27871 | U6: =IFERROR(INDEX(INDIRECT("'"&$A6&"'!$A:$AA"),MATCH("Итого",INDIRECT("'"&$A6&"'!$A:$A"),),COLUMN()+COUNTIF($B$2:U$2,"Продано бан*")*2),"") -> 24551
A7: Август | B7: =IFERROR(INDEX(INDIRECT("'"&$A7&"'!$A:$AA"),MATCH("Итого",INDIRECT("'"&$A7&"'!$A:$A"),),COLUMN()+COUNTIF($B$2:B$2,"Продано бан*")*2),"") ->  | C7: =IFERROR(INDEX(INDIRECT("'"&$A7&"'!$A:$AA"),MATCH("Итого",INDIRECT("'"&$A7&"'!$A:$A"),),COLUMN()+COUNTIF($B$2:C$2,"Продано бан*")*2),"") ->  | D7: =IFERROR(INDEX(INDIRECT("'"&$A7&"'!$A:$AA"),MATCH("Итого",INDIRECT("'"&$A7&"'!$A:$A"),),COLUMN()+COUNTIF($B$2:D$2,"Продано бан*")*2),"") ->  | E7: =IFERROR(INDEX(INDIRECT("'"&$A7&"'!$A:$AA"),MATCH("Итого",INDIRECT("'"&$A7&"'!$A:$A"),),COLUMN()+COUNTIF($B$2:E$2,"Продано бан*")*2),"") ->  | F7: =IFERROR(INDEX(INDIRECT("'"&$A7&"'!$A:$AA"),MATCH("Итого",INDIRECT("'"&$A7&"'!$A:$A"),),COLUMN()+COUNTIF($B$2:F$2,"Продано бан*")*2),"") ->  | G7: =IFERROR(INDEX(INDIRECT("'"&$A7&"'!$A:$AA"),MATCH("Итого",INDIRECT("'"&$A7&"'!$A:$A"),),COLUMN()+COUNTIF($B$2:G$2,"Продано бан*")*2),"") ->  | H7: =IFERROR(INDEX(INDIRECT("'"&$A7&"'!$A:$AA"),MATCH("Итого",INDIRECT("'"&$A7&"'!$A:$A"),),COLUMN()+COUNTIF($B$2:H$2,"Продано бан*")*2),"") ->  | I7: =IFERROR(INDEX(INDIRECT("'"&$A7&"'!$A:$AA"),MATCH("Итого",INDIRECT("'"&$A7&"'!$A:$A"),),COLUMN()+COUNTIF($B$2:I$2,"Продано бан*")*2),"") ->  | J7: =IFERROR(INDEX(INDIRECT("'"&$A7&"'!$A:$AA"),MATCH("Итого",INDIRECT("'"&$A7&"'!$A:$A"),),COLUMN()+COUNTIF($B$2:J$2,"Продано бан*")*2),"") ->  | K7: =IFERROR(INDEX(INDIRECT("'"&$A7&"'!$A:$AA"),MATCH("Итого",INDIRECT("'"&$A7&"'!$A:$A"),),COLUMN()+COUNTIF($B$2:K$2,"Продано бан*")*2),"") ->  | L7: =IFERROR(INDEX(INDIRECT("'"&$A7&"'!$A:$AA"),MATCH("Итого",INDIRECT("'"&$A7&"'!$A:$A"),),COLUMN()+COUNTIF($B$2:L$2,"Продано бан*")*2),"") ->  | M7: =IFERROR(INDEX(INDIRECT("'"&$A7&"'!$A:$AA"),MATCH("Итого",INDIRECT("'"&$A7&"'!$A:$A"),),COLUMN()+COUNTIF($B$2:M$2,"Продано бан*")*2),"") ->  | N7: =IFERROR(INDEX(INDIRECT("'"&$A7&"'!$A:$AA"),MATCH("Итого",INDIRECT("'"&$A7&"'!$A:$A"),),COLUMN()+COUNTIF($B$2:N$2,"Продано бан*")*2),"") ->  | O7: =IFERROR(INDEX(INDIRECT("'"&$A7&"'!$A:$AA"),MATCH("Итого",INDIRECT("'"&$A7&"'!$A:$A"),),COLUMN()+COUNTIF($B$2:O$2,"Продано бан*")*2),"") ->  | P7: =IFERROR(INDEX(INDIRECT("'"&$A7&"'!$A:$AA"),MATCH("Итого",INDIRECT("'"&$A7&"'!$A:$A"),),COLUMN()+COUNTIF($B$2:P$2,"Продано бан*")*2),"") ->  | Q7: =IFERROR(INDEX(INDIRECT("'"&$A7&"'!$A:$AA"),MATCH("Итого",INDIRECT("'"&$A7&"'!$A:$A"),),COLUMN()+COUNTIF($B$2:Q$2,"Продано бан*")*2),"") ->  | R7: =IFERROR(INDEX(INDIRECT("'"&$A7&"'!$A:$AA"),MATCH("Итого",INDIRECT("'"&$A7&"'!$A:$A"),),COLUMN()+COUNTIF($B$2:R$2,"Продано бан*")*2),"") ->  | S7: =IFERROR(INDEX(INDIRECT("'"&$A7&"'!$A:$AA"),MATCH("Итого",INDIRECT("'"&$A7&"'!$A:$A"),),COLUMN()+COUNTIF($B$2:S$2,"Продано бан*")*2),"") ->  | T7: =IFERROR(INDEX(INDIRECT("'"&$A7&"'!$A:$AA"),MATCH("Итого",INDIRECT("'"&$A7&"'!$A:$A"),),COLUMN()+COUNTIF($B$2:T$2,"Продано бан*")*2),"") ->  | U7: =IFERROR(INDEX(INDIRECT("'"&$A7&"'!$A:$AA"),MATCH("Итого",INDIRECT("'"&$A7&"'!$A:$A"),),COLUMN()+COUNTIF($B$2:U$2,"Продано бан*")*2),"") -> 
A8: Сентябрь | B8: =IFERROR(INDEX(INDIRECT("'"&$A8&"'!$A:$AA"),MATCH("Итого",INDIRECT("'"&$A8&"'!$A:$A"),),COLUMN()+COUNTIF($B$2:B$2,"Продано бан*")*2),"") ->  | C8: =IFERROR(INDEX(INDIRECT("'"&$A8&"'!$A:$AA"),MATCH("Итого",INDIRECT("'"&$A8&"'!$A:$A"),),COLUMN()+COUNTIF($B$2:C$2,"Продано бан*")*2),"") ->  | D8: =IFERROR(INDEX(INDIRECT("'"&$A8&"'!$A:$AA"),MATCH("Итого",INDIRECT("'"&$A8&"'!$A:$A"),),COLUMN()+COUNTIF($B$2:D$2,"Продано бан*")*2),"") ->  | E8: =IFERROR(INDEX(INDIRECT("'"&$A8&"'!$A:$AA"),MATCH("Итого",INDIRECT("'"&$A8&"'!$A:$A"),),COLUMN()+COUNTIF($B$2:E$2,"Продано бан*")*2),"") ->  | F8: =IFERROR(INDEX(INDIRECT("'"&$A8&"'!$A:$AA"),MATCH("Итого",INDIRECT("'"&$A8&"'!$A:$A"),),COLUMN()+COUNTIF($B$2:F$2,"Продано бан*")*2),"") ->  | G8: =IFERROR(INDEX(INDIRECT("'"&$A8&"'!$A:$AA"),MATCH("Итого",INDIRECT("'"&$A8&"'!$A:$A"),),COLUMN()+COUNTIF($B$2:G$2,"Продано бан*")*2),"") ->  | H8: =IFERROR(INDEX(INDIRECT("'"&$A8&"'!$A:$AA"),MATCH("Итого",INDIRECT("'"&$A8&"'!$A:$A"),),COLUMN()+COUNTIF($B$2:H$2,"Продано бан*")*2),"") ->  | I8: =IFERROR(INDEX(INDIRECT("'"&$A8&"'!$A:$AA"),MATCH("Итого",INDIRECT("'"&$A8&"'!$A:$A"),),COLUMN()+COUNTIF($B$2:I$2,"Продано бан*")*2),"") ->  | J8: =IFERROR(INDEX(INDIRECT("'"&$A8&"'!$A:$AA"),MATCH("Итого",INDIRECT("'"&$A8&"'!$A:$A"),),COLUMN()+COUNTIF($B$2:J$2,"Продано бан*")*2),"") ->  | K8: =IFERROR(INDEX(INDIRECT("'"&$A8&"'!$A:$AA"),MATCH("Итого",INDIRECT("'"&$A8&"'!$A:$A"),),COLUMN()+COUNTIF($B$2:K$2,"Продано бан*")*2),"") ->  | L8: =IFERROR(INDEX(INDIRECT("'"&$A8&"'!$A:$AA"),MATCH("Итого",INDIRECT("'"&$A8&"'!$A:$A"),),COLUMN()+COUNTIF($B$2:L$2,"Продано бан*")*2),"") ->  | M8: =IFERROR(INDEX(INDIRECT("'"&$A8&"'!$A:$AA"),MATCH("Итого",INDIRECT("'"&$A8&"'!$A:$A"),),COLUMN()+COUNTIF($B$2:M$2,"Продано бан*")*2),"") ->  | N8: =IFERROR(INDEX(INDIRECT("'"&$A8&"'!$A:$AA"),MATCH("Итого",INDIRECT("'"&$A8&"'!$A:$A"),),COLUMN()+COUNTIF($B$2:N$2,"Продано бан*")*2),"") ->  | O8: =IFERROR(INDEX(INDIRECT("'"&$A8&"'!$A:$AA"),MATCH("Итого",INDIRECT("'"&$A8&"'!$A:$A"),),COLUMN()+COUNTIF($B$2:O$2,"Продано бан*")*2),"") ->  | P8: =IFERROR(INDEX(INDIRECT("'"&$A8&"'!$A:$AA"),MATCH("Итого",INDIRECT("'"&$A8&"'!$A:$A"),),COLUMN()+COUNTIF($B$2:P$2,"Продано бан*")*2),"") ->  | Q8: =IFERROR(INDEX(INDIRECT("'"&$A8&"'!$A:$AA"),MATCH("Итого",INDIRECT("'"&$A8&"'!$A:$A"),),COLUMN()+COUNTIF($B$2:Q$2,"Продано бан*")*2),"") ->  | R8: =IFERROR(INDEX(INDIRECT("'"&$A8&"'!$A:$AA"),MATCH("Итого",INDIRECT("'"&$A8&"'!$A:$A"),),COLUMN()+COUNTIF($B$2:R$2,"Продано бан*")*2),"") ->  | S8: =IFERROR(INDEX(INDIRECT("'"&$A8&"'!$A:$AA"),MATCH("Итого",INDIRECT("'"&$A8&"'!$A:$A"),),COLUMN()+COUNTIF($B$2:S$2,"Продано бан*")*2),"") ->  | T8: =IFERROR(INDEX(INDIRECT("'"&$A8&"'!$A:$AA"),MATCH("Итого",INDIRECT("'"&$A8&"'!$A:$A"),),COLUMN()+COUNTIF($B$2:T$2,"Продано бан*")*2),"") ->  | U8: =IFERROR(INDEX(INDIRECT("'"&$A8&"'!$A:$AA"),MATCH("Итого",INDIRECT("'"&$A8&"'!$A:$A"),),COLUMN()+COUNTIF($B$2:U$2,"Продано бан*")*2),"") -> 
A9: Октябрь | B9: =IFERROR(INDEX(INDIRECT("'"&$A9&"'!$A:$AA"),MATCH("Итого",INDIRECT("'"&$A9&"'!$A:$A"),),COLUMN()+COUNTIF($B$2:B$2,"Продано бан*")*2),"") ->  | C9: =IFERROR(INDEX(INDIRECT("'"&$A9&"'!$A:$AA"),MATCH("Итого",INDIRECT("'"&$A9&"'!$A:$A"),),COLUMN()+COUNTIF($B$2:C$2,"Продано бан*")*2),"") ->  | D9: =IFERROR(INDEX(INDIRECT("'"&$A9&"'!$A:$AA"),MATCH("Итого",INDIRECT("'"&$A9&"'!$A:$A"),),COLUMN()+COUNTIF($B$2:D$2,"Продано бан*")*2),"") ->  | E9: =IFERROR(INDEX(INDIRECT("'"&$A9&"'!$A:$AA"),MATCH("Итого",INDIRECT("'"&$A9&"'!$A:$A"),),COLUMN()+COUNTIF($B$2:E$2,"Продано бан*")*2),"") ->  | F9: =IFERROR(INDEX(INDIRECT("'"&$A9&"'!$A:$AA"),MATCH("Итого",INDIRECT("'"&$A9&"'!$A:$A"),),COLUMN()+COUNTIF($B$2:F$2,"Продано бан*")*2),"") ->  | G9: =IFERROR(INDEX(INDIRECT("'"&$A9&"'!$A:$AA"),MATCH("Итого",INDIRECT("'"&$A9&"'!$A:$A"),),COLUMN()+COUNTIF($B$2:G$2,"Продано бан*")*2),"") ->  | H9: =IFERROR(INDEX(INDIRECT("'"&$A9&"'!$A:$AA"),MATCH("Итого",INDIRECT("'"&$A9&"'!$A:$A"),),COLUMN()+COUNTIF($B$2:H$2,"Продано бан*")*2),"") ->  | I9: =IFERROR(INDEX(INDIRECT("'"&$A9&"'!$A:$AA"),MATCH("Итого",INDIRECT("'"&$A9&"'!$A:$A"),),COLUMN()+COUNTIF($B$2:I$2,"Продано бан*")*2),"") ->  | J9: =IFERROR(INDEX(INDIRECT("'"&$A9&"'!$A:$AA"),MATCH("Итого",INDIRECT("'"&$A9&"'!$A:$A"),),COLUMN()+COUNTIF($B$2:J$2,"Продано бан*")*2),"") ->  | K9: =IFERROR(INDEX(INDIRECT("'"&$A9&"'!$A:$AA"),MATCH("Итого",INDIRECT("'"&$A9&"'!$A:$A"),),COLUMN()+COUNTIF($B$2:K$2,"Продано бан*")*2),"") ->  | L9: =IFERROR(INDEX(INDIRECT("'"&$A9&"'!$A:$AA"),MATCH("Итого",INDIRECT("'"&$A9&"'!$A:$A"),),COLUMN()+COUNTIF($B$2:L$2,"Продано бан*")*2),"") ->  | M9: =IFERROR(INDEX(INDIRECT("'"&$A9&"'!$A:$AA"),MATCH("Итого",INDIRECT("'"&$A9&"'!$A:$A"),),COLUMN()+COUNTIF($B$2:M$2,"Продано бан*")*2),"") ->  | N9: =IFERROR(INDEX(INDIRECT("'"&$A9&"'!$A:$AA"),MATCH("Итого",INDIRECT("'"&$A9&"'!$A:$A"),),COLUMN()+COUNTIF($B$2:N$2,"Продано бан*")*2),"") ->  | O9: =IFERROR(INDEX(INDIRECT("'"&$A9&"'!$A:$AA"),MATCH("Итого",INDIRECT("'"&$A9&"'!$A:$A"),),COLUMN()+COUNTIF($B$2:O$2,"Продано бан*")*2),"") ->  | P9: =IFERROR(INDEX(INDIRECT("'"&$A9&"'!$A:$AA"),MATCH("Итого",INDIRECT("'"&$A9&"'!$A:$A"),),COLUMN()+COUNTIF($B$2:P$2,"Продано бан*")*2),"") ->  | Q9: =IFERROR(INDEX(INDIRECT("'"&$A9&"'!$A:$AA"),MATCH("Итого",INDIRECT("'"&$A9&"'!$A:$A"),),COLUMN()+COUNTIF($B$2:Q$2,"Продано бан*")*2),"") ->  | R9: =IFERROR(INDEX(INDIRECT("'"&$A9&"'!$A:$AA"),MATCH("Итого",INDIRECT("'"&$A9&"'!$A:$A"),),COLUMN()+COUNTIF($B$2:R$2,"Продано бан*")*2),"") ->  | S9: =IFERROR(INDEX(INDIRECT("'"&$A9&"'!$A:$AA"),MATCH("Итого",INDIRECT("'"&$A9&"'!$A:$A"),),COLUMN()+COUNTIF($B$2:S$2,"Продано бан*")*2),"") ->  | T9: =IFERROR(INDEX(INDIRECT("'"&$A9&"'!$A:$AA"),MATCH("Итого",INDIRECT("'"&$A9&"'!$A:$A"),),COLUMN()+COUNTIF($B$2:T$2,"Продано бан*")*2),"") ->  | U9: =IFERROR(INDEX(INDIRECT("'"&$A9&"'!$A:$AA"),MATCH("Итого",INDIRECT("'"&$A9&"'!$A:$A"),),COLUMN()+COUNTIF($B$2:U$2,"Продано бан*")*2),"") -> 
A10: Ноябрь | B10: =IFERROR(INDEX(INDIRECT("'"&$A10&"'!$A:$AA"),MATCH("Итого",INDIRECT("'"&$A10&"'!$A:$A"),),COLUMN()+COUNTIF($B$2:B$2,"Продано бан*")*2),"") ->  | C10: =IFERROR(INDEX(INDIRECT("'"&$A10&"'!$A:$AA"),MATCH("Итого",INDIRECT("'"&$A10&"'!$A:$A"),),COLUMN()+COUNTIF($B$2:C$2,"Продано бан*")*2),"") ->  | D10: =IFERROR(INDEX(INDIRECT("'"&$A10&"'!$A:$AA"),MATCH("Итого",INDIRECT("'"&$A10&"'!$A:$A"),),COLUMN()+COUNTIF($B$2:D$2,"Продано бан*")*2),"") ->  | E10: =IFERROR(INDEX(INDIRECT("'"&$A10&"'!$A:$AA"),MATCH("Итого",INDIRECT("'"&$A10&"'!$A:$A"),),COLUMN()+COUNTIF($B$2:E$2,"Продано бан*")*2),"") ->  | F10: =IFERROR(INDEX(INDIRECT("'"&$A10&"'!$A:$AA"),MATCH("Итого",INDIRECT("'"&$A10&"'!$A:$A"),),COLUMN()+COUNTIF($B$2:F$2,"Продано бан*")*2),"") ->  | G10: =IFERROR(INDEX(INDIRECT("'"&$A10&"'!$A:$AA"),MATCH("Итого",INDIRECT("'"&$A10&"'!$A:$A"),),COLUMN()+COUNTIF($B$2:G$2,"Продано бан*")*2),"") ->  | H10: =IFERROR(INDEX(INDIRECT("'"&$A10&"'!$A:$AA"),MATCH("Итого",INDIRECT("'"&$A10&"'!$A:$A"),),COLUMN()+COUNTIF($B$2:H$2,"Продано бан*")*2),"") ->  | I10: =IFERROR(INDEX(INDIRECT("'"&$A10&"'!$A:$AA"),MATCH("Итого",INDIRECT("'"&$A10&"'!$A:$A"),),COLUMN()+COUNTIF($B$2:I$2,"Продано бан*")*2),"") ->  | J10: =IFERROR(INDEX(INDIRECT("'"&$A10&"'!$A:$AA"),MATCH("Итого",INDIRECT("'"&$A10&"'!$A:$A"),),COLUMN()+COUNTIF($B$2:J$2,"Продано бан*")*2),"") ->  | K10: =IFERROR(INDEX(INDIRECT("'"&$A10&"'!$A:$AA"),MATCH("Итого",INDIRECT("'"&$A10&"'!$A:$A"),),COLUMN()+COUNTIF($B$2:K$2,"Продано бан*")*2),"") ->  | L10: =IFERROR(INDEX(INDIRECT("'"&$A10&"'!$A:$AA"),MATCH("Итого",INDIRECT("'"&$A10&"'!$A:$A"),),COLUMN()+COUNTIF($B$2:L$2,"Продано бан*")*2),"") ->  | M10: =IFERROR(INDEX(INDIRECT("'"&$A10&"'!$A:$AA"),MATCH("Итого",INDIRECT("'"&$A10&"'!$A:$A"),),COLUMN()+COUNTIF($B$2:M$2,"Продано бан*")*2),"") ->  | N10: =IFERROR(INDEX(INDIRECT("'"&$A10&"'!$A:$AA"),MATCH("Итого",INDIRECT("'"&$A10&"'!$A:$A"),),COLUMN()+COUNTIF($B$2:N$2,"Продано бан*")*2),"") ->  | O10: =IFERROR(INDEX(INDIRECT("'"&$A10&"'!$A:$AA"),MATCH("Итого",INDIRECT("'"&$A10&"'!$A:$A"),),COLUMN()+COUNTIF($B$2:O$2,"Продано бан*")*2),"") ->  | P10: =IFERROR(INDEX(INDIRECT("'"&$A10&"'!$A:$AA"),MATCH("Итого",INDIRECT("'"&$A10&"'!$A:$A"),),COLUMN()+COUNTIF($B$2:P$2,"Продано бан*")*2),"") ->  | Q10: =IFERROR(INDEX(INDIRECT("'"&$A10&"'!$A:$AA"),MATCH("Итого",INDIRECT("'"&$A10&"'!$A:$A"),),COLUMN()+COUNTIF($B$2:Q$2,"Продано бан*")*2),"") ->  | R10: =IFERROR(INDEX(INDIRECT("'"&$A10&"'!$A:$AA"),MATCH("Итого",INDIRECT("'"&$A10&"'!$A:$A"),),COLUMN()+COUNTIF($B$2:R$2,"Продано бан*")*2),"") ->  | S10: =IFERROR(INDEX(INDIRECT("'"&$A10&"'!$A:$AA"),MATCH("Итого",INDIRECT("'"&$A10&"'!$A:$A"),),COLUMN()+COUNTIF($B$2:S$2,"Продано бан*")*2),"") ->  | T10: =IFERROR(INDEX(INDIRECT("'"&$A10&"'!$A:$AA"),MATCH("Итого",INDIRECT("'"&$A10&"'!$A:$A"),),COLUMN()+COUNTIF($B$2:T$2,"Продано бан*")*2),"") ->  | U10: =IFERROR(INDEX(INDIRECT("'"&$A10&"'!$A:$AA"),MATCH("Итого",INDIRECT("'"&$A10&"'!$A:$A"),),COLUMN()+COUNTIF($B$2:U$2,"Продано бан*")*2),"") -> 
A11: Декабрь | B11: =IFERROR(INDEX(INDIRECT("'"&$A11&"'!$A:$AA"),MATCH("Итого",INDIRECT("'"&$A11&"'!$A:$A"),),COLUMN()+COUNTIF($B$2:B$2,"Продано бан*")*2),"") ->  | C11: =IFERROR(INDEX(INDIRECT("'"&$A11&"'!$A:$AA"),MATCH("Итого",INDIRECT("'"&$A11&"'!$A:$A"),),COLUMN()+COUNTIF($B$2:C$2,"Продано бан*")*2),"") ->  | D11: =IFERROR(INDEX(INDIRECT("'"&$A11&"'!$A:$AA"),MATCH("Итого",INDIRECT("'"&$A11&"'!$A:$A"),),COLUMN()+COUNTIF($B$2:D$2,"Продано бан*")*2),"") ->  | E11: =IFERROR(INDEX(INDIRECT("'"&$A11&"'!$A:$AA"),MATCH("Итого",INDIRECT("'"&$A11&"'!$A:$A"),),COLUMN()+COUNTIF($B$2:E$2,"Продано бан*")*2),"") ->  | F11: =IFERROR(INDEX(INDIRECT("'"&$A11&"'!$A:$AA"),MATCH("Итого",INDIRECT("'"&$A11&"'!$A:$A"),),COLUMN()+COUNTIF($B$2:F$2,"Продано бан*")*2),"") ->  | G11: =IFERROR(INDEX(INDIRECT("'"&$A11&"'!$A:$AA"),MATCH("Итого",INDIRECT("'"&$A11&"'!$A:$A"),),COLUMN()+COUNTIF($B$2:G$2,"Продано бан*")*2),"") ->  | H11: =IFERROR(INDEX(INDIRECT("'"&$A11&"'!$A:$AA"),MATCH("Итого",INDIRECT("'"&$A11&"'!$A:$A"),),COLUMN()+COUNTIF($B$2:H$2,"Продано бан*")*2),"") ->  | I11: =IFERROR(INDEX(INDIRECT("'"&$A11&"'!$A:$AA"),MATCH("Итого",INDIRECT("'"&$A11&"'!$A:$A"),),COLUMN()+COUNTIF($B$2:I$2,"Продано бан*")*2),"") ->  | J11: =IFERROR(INDEX(INDIRECT("'"&$A11&"'!$A:$AA"),MATCH("Итого",INDIRECT("'"&$A11&"'!$A:$A"),),COLUMN()+COUNTIF($B$2:J$2,"Продано бан*")*2),"") ->  | K11: =IFERROR(INDEX(INDIRECT("'"&$A11&"'!$A:$AA"),MATCH("Итого",INDIRECT("'"&$A11&"'!$A:$A"),),COLUMN()+COUNTIF($B$2:K$2,"Продано бан*")*2),"") ->  | L11: =IFERROR(INDEX(INDIRECT("'"&$A11&"'!$A:$AA"),MATCH("Итого",INDIRECT("'"&$A11&"'!$A:$A"),),COLUMN()+COUNTIF($B$2:L$2,"Продано бан*")*2),"") ->  | M11: =IFERROR(INDEX(INDIRECT("'"&$A11&"'!$A:$AA"),MATCH("Итого",INDIRECT("'"&$A11&"'!$A:$A"),),COLUMN()+COUNTIF($B$2:M$2,"Продано бан*")*2),"") ->  | N11: =IFERROR(INDEX(INDIRECT("'"&$A11&"'!$A:$AA"),MATCH("Итого",INDIRECT("'"&$A11&"'!$A:$A"),),COLUMN()+COUNTIF($B$2:N$2,"Продано бан*")*2),"") ->  | O11: =IFERROR(INDEX(INDIRECT("'"&$A11&"'!$A:$AA"),MATCH("Итого",INDIRECT("'"&$A11&"'!$A:$A"),),COLUMN()+COUNTIF($B$2:O$2,"Продано бан*")*2),"") ->  | P11: =IFERROR(INDEX(INDIRECT("'"&$A11&"'!$A:$AA"),MATCH("Итого",INDIRECT("'"&$A11&"'!$A:$A"),),COLUMN()+COUNTIF($B$2:P$2,"Продано бан*")*2),"") ->  | Q11: =IFERROR(INDEX(INDIRECT("'"&$A11&"'!$A:$AA"),MATCH("Итого",INDIRECT("'"&$A11&"'!$A:$A"),),COLUMN()+COUNTIF($B$2:Q$2,"Продано бан*")*2),"") ->  | R11: =IFERROR(INDEX(INDIRECT("'"&$A11&"'!$A:$AA"),MATCH("Итого",INDIRECT("'"&$A11&"'!$A:$A"),),COLUMN()+COUNTIF($B$2:R$2,"Продано бан*")*2),"") ->  | S11: =IFERROR(INDEX(INDIRECT("'"&$A11&"'!$A:$AA"),MATCH("Итого",INDIRECT("'"&$A11&"'!$A:$A"),),COLUMN()+COUNTIF($B$2:S$2,"Продано бан*")*2),"") ->  | T11: =IFERROR(INDEX(INDIRECT("'"&$A11&"'!$A:$AA"),MATCH("Итого",INDIRECT("'"&$A11&"'!$A:$A"),),COLUMN()+COUNTIF($B$2:T$2,"Продано бан*")*2),"") ->  | U11: =IFERROR(INDEX(INDIRECT("'"&$A11&"'!$A:$AA"),MATCH("Итого",INDIRECT("'"&$A11&"'!$A:$A"),),COLUMN()+COUNTIF($B$2:U$2,"Продано бан*")*2),"") -> 
A13: Итого за год | L13: =SUM(L4:L11) -> 30294 | M13: =SUM(M4:M11) -> 7737 | N13: 2158 | O13: 28512 | P13: 9895
A15: Название компаний | D15: 1 литр | E15: 2,4 литра | F15: 3 литр | H15: Банка 1 литр | M15: Банка 2,4 литра | Q15: Банка 3 литра
A16: Дитекс | D16: =SUMIF(Май!L:L,A16,Май!M:M)+SUMIF(Июнь!L:L,A16,Июнь!M:M)+SUMIF(Июль!L:L,A16,Июль!M:M) -> 0 | F16: =Май!S40+Май!S44 -> 2058
A17: АктиКорозионные Покрытия | D17: =SUMIF(Май!L:L,A17,Май!M:M)+SUMIF(Июнь!L:L,A17,Июнь!M:M)+SUMIF(Июль!L:L,A17,Июль!M:M) -> 891
A18: НПО "Ладога" | D18: =SUMIF(Май!L:L,A18,Май!M:M)+SUMIF(Июнь!L:L,A18,Июнь!M:M)+SUMIF(Июль!L:L,A18,Июль!M:M) -> 21384 | E18: =Июнь!P21 -> 3024
A19: Стан | D19: =SUMIF(Май!L:L,A19,Май!M:M)+SUMIF(Июнь!L:L,A19,Июнь!M:M)+SUMIF(Июль!L:L,A19,Июль!M:M) -> 3564
A20: Стереохим | D20: =SUMIF(Май!L:L,A20,Май!M:M)+SUMIF(Июнь!L:L,A20,Июнь!M:M)+SUMIF(Июль!L:L,A20,Июль!M:M) -> 1782 | E20: =Май!P36+Июнь!P4 -> 1689
A21: Силта | D21: =SUMIF(Май!L:L,A21,Май!M:M)+SUMIF(Июнь!L:L,A21,Июнь!M:M)+SUMIF(Июль!L:L,A21,Июль!M:M) -> 891
A22: Растро | D22: =SUMIF(Май!L:L,A22,Май!M:M)+SUMIF(Июнь!L:L,A22,Июнь!M:M)+SUMIF(Июль!L:L,A22,Июль!M:M) -> 0 | E22: =Май!P12 -> 1134
A23: Альянс | D23: =SUMIF(Май!L:L,A23,Май!M:M)+SUMIF(Июнь!L:L,A23,Июнь!M:M)+SUMIF(Июль!L:L,A23,Июль!M:M) -> 0 | E23: =Май!P68 -> 378
A24: Сова технология | D24: =SUMIF(Май!L:L,A24,Май!M:M)+SUMIF(Июнь!L:L,A24,Июнь!M:M)+SUMIF(Июль!L:L,A24,Июль!M:M) -> 891 | E24: =Июнь!P8 -> 378 | F24: =Июнь!S8 -> 100
A25: НПО "Нефтихим" | D25: =SUMIF(Май!L:L,A25,Май!M:M)+SUMIF(Июнь!L:L,A25,Июнь!M:M)+SUMIF(Июль!L:L,A25,Июль!M:M) -> 891
